{"text_format":"1","workbook":"xlsx","n_sheets":6,"sheets":["様式-3","様式-9","様式-16","現況記録写真","MASTER","HiddenSheet_様式-3"],"not_rendered":{"charts":0,"images":29,"macros":1,"external_links":0,"defined_names":31,"comments":0,"pivot_tables":0},"unopened":[],"bounds":{"document_bytes":16777216,"sheet_cells":100000,"rows_first":2000,"rows_last":500,"rows_between":2000,"halvings":0,"cell_chars":16384,"cell_head_chars":4096},"cells_cut":0,"cells_raw":0,"read":"whole","date_system":"1900"}

{"sheet":"様式-3","index":0,"n_rows":42,"n_cols":94,"rows_kept":42,"cut":false,"hidden":false,"merged":[[5,1,5,3],[5,4,5,6],[5,7,5,9],[5,10,5,16],[4,1,4,5],[4,14,4,18],[4,25,4,27],[5,25,5,27],[3,84,3,85],[4,85,4,88],[4,83,4,84],[4,52,4,55],[5,49,5,59],[5,62,5,63],[5,60,5,61],[5,45,5,48],[4,19,4,24],[5,17,5,21],[5,22,5,24],[1,76,1,90],[2,76,2,90],[3,88,3,90],[4,89,4,90],[5,85,5,90],[3,86,3,87],[1,27,2,63],[5,65,5,66],[4,28,4,51],[4,65,4,66],[4,80,4,82],[5,76,5,77],[5,71,5,72],[5,79,5,80],[6,62,6,65],[6,52,6,54],[6,55,6,57],[5,28,5,44],[6,58,6,61],[6,36,6,39],[6,40,6,41],[6,31,6,33],[6,45,6,47],[31,57,31,58],[6,42,6,44],[6,18,6,21],[31,60,31,66],[6,1,6,8],[6,66,6,69],[31,5,31,49],[31,1,31,4],[6,86,6,90],[31,85,31,90],[31,50,31,56],[8,2,29,48],[8,51,29,89],[6,80,6,85],[7,1,7,49],[6,34,6,35],[6,9,6,12],[6,13,6,17],[7,51,7,89],[6,48,6,51],[6,70,6,73],[6,22,6,24],[6,25,6,26],[6,27,6,30],[32,1,32,4],[33,5,33,10],[32,19,32,20],[32,12,32,13],[32,15,32,17],[33,1,33,4],[33,57,33,62],[33,50,33,56],[32,50,32,56],[32,22,32,49],[32,9,32,10],[33,23,33,49],[32,5,32,7],[32,57,32,62],[33,11,33,16],[33,17,33,22],[35,53,35,56],[38,74,38,76],[36,60,36,67],[37,60,37,67],[36,68,36,73],[34,57,34,58],[41,60,41,67],[38,57,38,59],[34,68,34,78],[39,68,39,73],[36,77,36,90],[35,87,35,90],[41,68,41,73],[39,74,39,76],[40,74,40,76],[41,74,41,76],[38,77,38,90],[39,77,39,90],[40,77,40,90],[41,77,41,90],[34,60,34,61],[34,64,34,67],[34,79,34,81],[35,68,35,78],[34,5,42,49],[42,50,42,90],[39,50,41,56],[36,50,38,56],[35,50,35,52],[34,50,34,52],[34,87,34,90],[34,53,34,56],[1,67,2,75],[33,72,33,79],[3,82,3,83],[40,68,40,73],[38,68,38,73],[3,80,3,81],[3,78,3,79],[3,76,3,77],[6,74,6,76],[3,67,3,75],[4,76,4,79],[5,68,5,69],[5,82,5,84],[6,77,6,79],[31,68,31,83],[5,73,5,74],[34,1,34,4],[35,1,35,4],[36,1,42,4],[32,89,32,90],[33,89,33,90],[36,74,36,76],[37,74,37,76],[40,57,40,59],[41,57,41,59],[36,57,36,59],[37,57,37,59],[35,57,35,58],[35,60,35,61],[39,60,39,67],[40,60,40,67],[39,57,39,59],[37,77,37,90],[38,60,38,67],[35,64,35,67],[33,81,33,88],[33,63,33,70],[37,68,37,73],[34,83,34,85],[34,62,34,63]]}
[]
[null,null,null,null,null,null,null,null,null,null,null,null,null,null,null,null,null,null,null,null,null,null,null,null,null,null,null,"様式－３　　箇所別記録表（地すべり）",null,null,null,null,null,null,null,null,null,null,null,null,null,null,null,null,null,null,null,null,null,null,null,null,null,null,null,null,null,null,null,null,null,null,null,null,null,null,null,"管理機関名",null,null,null,null,null,null,null,null,"大阪府"]
[]
[null,null,null,null,null,null,null,null,null,null,null,null,null,null,null,null,null,null,null,null,null,null,null,null,null,null,null,null,null,null,null,null,null,null,null,null,null,null,null,null,null,null,null,null,null,null,null,null,null,null,null,null,null,null,null,null,null,null,null,null,null,null,null,null,null,null,null,"管理機関コード",null,null,null,null,null,null,null,null,2,null,7,null,null,null,null,null,null,null,null,null,null,null,null,null,"※消さないでください"]
[null,"施設管理番号",null,null,null,null,null,null,null,null,{"$f":"IF(ISERROR(MATCH(T5,MASTER_LIST_点検対象項目,0))=TRUE,\"\",INDEX(MASTER!AG3:AG60000,MATCH(T5,MASTER_LIST_点検対象項目,0)))","v":"C"},null,null,null,"点検対象項目",null,null,null,null,"地すべり",null,null,null,null,null,"路線名",null,null,null,null,null,null,null,null,null,null,null,null,null,null,null,null,null,null,null,null,null,null,null,null,null,null,"距離標（自）",null,null,null,null,null,null,null,null,null,null,null,null,"(至)",null,null,null,null,null,null,null,null,null,null,"上下線の別",null,null,null,null,null,null,"延長",null,null,null,null,null,"m",null,null,"路線ID",{"$f":"IF(ISERROR(MATCH(AC5,MASTER_TB_CO_ROUTE,0))=TRUE,\"\",INDEX(MASTER!#REF!,MATCH(AC5,MASTER_TB_CO_ROUTE,0)))","v":""}]
[null,"事業区分",null,null,null,null,null,"道路種別",null,null,{"$f":"IFERROR(VLOOKUP(AC5,TABLE_MASTER_CO_ROUTE,4,FALSE),\"\")","v":""},null,null,null,null,null,null,"現道・旧道路区分",null,null,null,null,{"$f":"IFERROR(VLOOKUP(AC5,TABLE_MASTER_CO_ROUTE,7,FALSE),\"\")","v":""},null,null,"所在地",null,null,null,null,null,null,null,null,null,null,null,null,null,null,null,null,null,null,null,"位置目印",null,null,null,null,null,null,null,null,null,null,null,null,null,null,"北緯",null,null,null,"度",null,null,"分",null,null,"秒","東経",null,null,null,"度",null,null,"分",null,null,"秒","測地系"]
[null,"事前通行規制区間指定",null,null,null,null,null,null,null,null,null,null,null,"規制基準等",null,null,null,null,"連続雨量",null,null,null,null,null,null,"mm",null,"時間雨量",null,null,null,null,null,null,"mm",null,"交通量",null,null,null,"平日",null,null,null,null,"台/12h",null,null,"休日",null,null,null,null,null,null,"台/12h",null,null,"ＤＩＤ区間",null,null,null,null,null,null,null,"バス路線",null,null,null,null,null,null,null,"迂回路",null,null,null,null,null,"緊急輸送道路区分"]
[null,"スケッチ・現況写真（既設対策工、位置目印との位置関係が分かるもの）",null,null,null,null,null,null,null,null,null,null,null,null,null,null,null,null,null,null,null,null,null,null,null,null,null,null,null,null,null,null,null,null,null,null,null,null,null,null,null,null,null,null,null,null,null,null,null,null,null,"位　置　図"]
[]
[]
[]
[]
[]
[]
[]
[]
[]
[]
[]
[]
[]
[]
[]
[]
[]
[]
[]
[]
[]
[]
[]
[null,"特記事項",null,null,null,null,null,null,null,null,null,null,null,null,null,null,null,null,null,null,null,null,null,null,null,null,null,null,null,null,null,null,null,null,null,null,null,null,null,null,null,null,null,null,null,null,null,null,null,null,"被災履歴",null,null,null,null,null,null,null,null,"（",null,null,null,null,null,null,null,null,null,null,null,null,null,null,null,null,null,null,null,null,null,null,null,null,"）","（H8年度以降）"]
[null,"点検実施",null,null,null,"H",null,null,"年",null,null,"月",null,null,"日","天候：",null,null,"（",null,null,"）",null,null,null,null,null,null,null,null,null,null,null,null,null,null,null,null,null,null,null,null,null,null,null,null,null,null,null,null,"重複点検対象項目",null,null,null,null,null,null,"対応施設管理番号：",null,null,null,null,null,null,null,null,null,{"$f":"IF(ISERROR(MATCH(BL34,MASTER_LIST_点検対象項目,0))=TRUE,\"\",INDEX(MASTER!AG3:AG60000,MATCH(BL34,MASTER_LIST_点検対象項目,0)))","v":""},null,null,null,null,null,null,null,null,{"$f":"IF(ISERROR(MATCH(BU34,MASTER_LIST_点検対象項目,0))=TRUE,\"\",INDEX(MASTER!AG3:AG60000,MATCH(BU34,MASTER_LIST_点検対象項目,0)))","v":""},null,null,null,null,null,null,null,null,{"$f":"IF(ISERROR(MATCH(CD34,MASTER_LIST_点検対象項目,0))=TRUE,\"\",INDEX(MASTER!AG3:AG60000,MATCH(CD34,MASTER_LIST_点検対象項目,0)))","v":""}]
[null,"調査方法"]
[null,"所見",null,null,null,null,null,null,null,null,null,null,null,null,null,null,null,null,null,null,null,null,null,null,null,null,null,null,null,null,null,null,null,null,null,null,null,null,null,null,null,null,null,null,null,null,null,null,null,null,"H",null,null,"年度点検結果",null,null,null,"評点",null,"（",null,null,"点）",null,"総合評価：",null,null,null,null,null,null,null,null,null,null,null,null,null,null,"／対応：",null,null,"（",null,null,null,"）"]
[null,"（評価理由）",null,null,null,null,null,null,null,null,null,null,null,null,null,null,null,null,null,null,null,null,null,null,null,null,null,null,null,null,null,null,null,null,null,null,null,null,null,null,null,null,null,null,null,null,null,null,null,null,"H",null,null,"年度点検結果",null,null,null,"評点",null,"（",null,null,"点）",null,"総合評価：",null,null,null,"特に新たな対応を必要としない"]
[null,null,null,null,null,null,null,null,null,null,null,null,null,null,null,null,null,null,null,null,null,null,null,null,null,null,null,null,null,null,null,null,null,null,null,null,null,null,null,null,null,null,null,null,null,null,null,null,null,null,"予想災害規模",null,null,null,null,null,null,"現象1：",null,null,null,null,null,null,null,null,null,null,null,null,null,null,null,null,"規模1："]
[null,null,null,null,null,null,null,null,null,null,null,null,null,null,null,null,null,null,null,null,null,null,null,null,null,null,null,null,null,null,null,null,null,null,null,null,null,null,null,null,null,null,null,null,null,null,null,null,null,null,null,null,null,null,null,null,null,"現象2：",null,null,null,null,null,null,null,null,null,null,null,null,null,null,null,null,"規模2："]
[null,null,null,null,null,null,null,null,null,null,null,null,null,null,null,null,null,null,null,null,null,null,null,null,null,null,null,null,null,null,null,null,null,null,null,null,null,null,null,null,null,null,null,null,null,null,null,null,null,null,null,null,null,null,null,null,null,"現象3：",null,null,null,null,null,null,null,null,null,null,null,null,null,null,null,null,"規模3："]
[null,null,null,null,null,null,null,null,null,null,null,null,null,null,null,null,null,null,null,null,null,null,null,null,null,null,null,null,null,null,null,null,null,null,null,null,null,null,null,null,null,null,null,null,null,null,null,null,null,null,"想定対策工",null,null,null,null,null,null,"工種1：",null,null,null,null,null,null,null,null,null,null,null,null,null,null,null,null,"その他1："]
[null,null,null,null,null,null,null,null,null,null,null,null,null,null,null,null,null,null,null,null,null,null,null,null,null,null,null,null,null,null,null,null,null,null,null,null,null,null,null,null,null,null,null,null,null,null,null,null,null,null,null,null,null,null,null,null,null,"工種2：",null,null,null,null,null,null,null,null,null,null,null,null,null,null,null,null,"その他2："]
[null,null,null,null,null,null,null,null,null,null,null,null,null,null,null,null,null,null,null,null,null,null,null,null,null,null,null,null,null,null,null,null,null,null,null,null,null,null,null,null,null,null,null,null,null,null,null,null,null,null,null,null,null,null,null,null,null,"工種3：",null,null,null,null,null,null,null,null,null,null,null,null,null,null,null,null,"その他3："]

{"sheet":"様式-9","index":1,"n_rows":49,"n_cols":73,"rows_kept":49,"cut":false,"hidden":false,"merged":[[41,28,42,40],[41,41,42,44],[41,45,42,47],[41,54,42,67],[41,68,42,72],[47,31,48,40],[47,44,48,45],[48,46,48,47],[43,28,44,40],[43,41,44,44],[43,45,44,47],[45,28,46,40],[45,41,46,44],[45,45,46,47],[32,35,33,40],[33,43,33,45],[33,46,33,47],[35,54,36,67],[35,68,36,72],[37,54,38,67],[37,68,38,72],[39,54,40,67],[39,68,40,72],[40,29,40,39],[40,41,40,44],[40,45,40,47],[24,15,26,24],[24,25,24,26],[25,28,26,29],[26,30,26,31],[28,35,29,40],[29,43,29,45],[29,46,29,47],[30,35,31,40],[31,43,31,45],[31,46,31,47],[21,3,23,4],[21,5,21,24],[21,25,21,27],[21,28,21,31],[22,5,22,24],[22,25,23,27],[22,28,22,31],[23,5,23,24],[23,28,23,31],[17,3,20,4],[17,5,17,24],[17,25,17,27],[17,28,17,31],[17,72,17,73],[18,5,18,24],[18,25,18,27],[18,28,19,31],[19,5,19,24],[19,25,19,27],[20,5,20,24],[20,25,20,27],[20,28,20,31],[14,68,15,70],[15,5,15,24],[15,25,15,27],[15,46,15,60],[16,5,16,24],[16,25,16,27],[16,28,16,31],[16,54,17,67],[16,70,17,71],[12,25,12,27],[12,28,12,31],[12,46,12,60],[10,62,11,66],[10,68,11,70],[10,71,14,73],[15,71,15,73],[11,1,23,2],[11,3,16,4],[11,5,11,24],[11,25,11,27],[11,28,11,31],[11,46,11,60],[12,5,12,24],[12,62,13,66],[12,68,13,70],[13,5,13,24],[13,25,13,27],[13,28,15,31],[13,46,13,60],[14,5,14,24],[14,25,14,27],[14,46,14,60],[14,62,15,66],[1,70,1,76],[8,1,10,4],[8,5,8,19],[8,20,8,24],[8,25,8,27],[8,28,8,31],[8,41,9,45],[8,46,9,63],[8,64,8,67],[8,68,8,70],[8,71,8,73],[9,5,9,19],[9,20,9,24],[9,25,9,27],[9,28,9,31],[9,64,9,67],[9,68,9,70],[9,71,9,73],[10,5,10,19],[10,20,10,24],[10,25,10,27],[10,28,10,31],[10,41,15,45],[10,46,10,60],[1,77,1,88],[2,70,2,76],[2,77,2,88],[7,1,7,4],[7,5,7,24],[7,25,7,27],[7,28,7,31],[7,41,7,45],[7,46,7,67],[7,68,7,70],[7,71,7,73],[1,1,1,5],[1,6,1,7],[1,8,1,9],[1,10,1,11],[1,12,1,13],[1,14,1,15],[1,16,1,17],[1,18,1,19],[1,20,1,21],[1,23,1,26],[1,27,1,28],[1,29,1,30],[1,32,2,61]]}
[]
[null,"施設管理番号",null,null,null,null,{"$f":"IF('様式-3'!$G$5<>\"\",'様式-3'!$G$5,\"\")","v":""},null,{"$f":"IF('様式-3'!$H$5<>\"\",'様式-3'!$H$5,\"\")","v":""},null,{"$f":"IF('様式-3'!$I$5<>\"\",'様式-3'!$I$5,\"\")","v":""},null,{"$f":"IF('様式-3'!$J$5<>\"\",'様式-3'!$J$5,\"\")","v":""},null,{"$f":"IF('様式-3'!$K$5<>\"\",'様式-3'!$K$5,\"\")","v":"C"},null,{"$f":"IF('様式-3'!$L$5<>\"\",'様式-3'!$L$5,\"\")","v":""},null,{"$f":"IF('様式-3'!$M$5<>\"\",'様式-3'!$M$5,\"\")","v":""},null,{"$f":"IF('様式-3'!$N$5<>\"\",'様式-3'!$N$5,\"\")","v":""},null,null,"部分記号",null,null,null,null,null,null,null,null,"様式－９　　安定度調査表（地すべり）",null,null,null,null,null,null,null,null,null,null,null,null,null,null,null,null,null,null,null,null,null,null,null,null,null,null,null,null,null,null,null,null,null,null,null,null,null,"点　検　者"]
[null,null,null,null,null,null,null,null,null,null,null,null,null,null,null,null,null,null,null,null,null,null,null,null,null,null,null,null,null,null,null,null,null,null,null,null,null,null,null,null,null,null,null,null,null,null,null,null,null,null,null,null,null,null,null,null,null,null,null,null,null,null,null,null,null,null,null,null,null,null,"所 属 機 関"]
[]
[]
[]
[null,"[要因]（A）",null,null,null,null,null,null,null,null,null,null,null,null,null,null,null,null,null,null,null,null,null,null,null,null,null,null,null,null,null,null,null,null,null,null,null,null,null,null,null,"[履歴]（B）"]
[null,"項目",null,null,null,"着　　　眼　　　点",null,null,null,null,null,null,null,null,null,null,null,null,null,null,null,null,null,null,null,"配点",null,null,"評点",null,null,null,null,null,null,null,null,null,null,null,null,"項　　目",null,null,null,null,"着　　　　　眼　　　　　点",null,null,null,null,null,null,null,null,null,null,null,null,null,null,null,null,null,null,null,null,null,"配　点",null,null,"評　点"]
[null,"地すべり\n地　　形",null,null,null,"滑落崖、丘状地形、緩傾斜地、等高線",null,null,null,null,null,null,null,null,null,null,null,null,null,null,"明　瞭",null,null,null,null,30,null,null,"（択一）",null,null,null,null,null,null,null,null,null,null,null,null,"地すべり\n履　　歴",null,null,null,null,"過去の災害、地すべりの記録や確かな伝承等",null,null,null,null,null,null,null,null,null,null,null,null,null,null,null,null,null,"あり",null,null,null,100]
[null,null,null,null,null,"の乱れ、河川などへの押し出し等の地",null,null,null,null,null,null,null,null,null,null,null,null,null,null,"やや明瞭",null,null,null,null,15,null,null,null,null,null,null,null,null,null,null,null,null,null,null,null,null,null,null,null,null,null,null,null,null,null,null,null,null,null,null,null,null,null,null,null,null,null,null,"なし",null,null,null,0,null,null,"(100)"]
[null,null,null,null,null,"すべり地形が認められる。",null,null,null,null,null,null,null,null,null,null,null,null,null,null,"不 明 瞭",null,null,null,null,7,null,null,"(30)",null,null,null,null,null,null,null,null,null,null,null,null,"地すべり\n兆　　候",null,null,null,null,"斜面の亀裂、隆起や陥没",null,null,null,null,null,null,null,null,null,null,null,null,null,null,null,"顕著な兆候",null,null,null,null,null,100]
[null,"地　　　質　　　等",null,"地質構造等",null,"断層・破砕帯",null,null,null,null,null,null,null,null,null,null,null,null,null,null,null,null,null,null,null,18,null,null,"※",null,null,null,null,null,null,null,null,null,null,null,null,null,null,null,null,null,"斜面安定工の異常、変状"]
[null,null,null,null,null,"火山変質帯、温泉余土",null,null,null,null,null,null,null,null,null,null,null,null,null,null,null,null,null,null,null,18,null,null,"（択一）",null,null,null,null,null,null,null,null,null,null,null,null,null,null,null,null,null,"路面の隆起、亀裂等",null,null,null,null,null,null,null,null,null,null,null,null,null,null,null,"軽微な兆候",null,null,null,null,null,75]
[null,null,null,null,null,"流れ盤",null,null,null,null,null,null,null,null,null,null,null,null,null,null,null,null,null,null,null,14,null,null,null,null,null,null,null,null,null,null,null,null,null,null,null,null,null,null,null,null,"小崩壊"]
[null,null,null,null,null,"受け盤",null,null,null,null,null,null,null,null,null,null,null,null,null,null,null,null,null,null,null,7,null,null,null,null,null,null,null,null,null,null,null,null,null,null,null,null,null,null,null,null,"（兆候発生後対策が実施されたものは、",null,null,null,null,null,null,null,null,null,null,null,null,null,null,null,"兆候なし",null,null,null,null,null,0]
[null,null,null,null,null,"貫入岩構造、キャップロック構造",null,null,null,null,null,null,null,null,null,null,null,null,null,null,null,null,null,null,null,3,null,null,null,null,null,null,null,null,null,null,null,null,null,null,null,null,null,null,null,null,"　「兆候なし」とする。）",null,null,null,null,null,null,null,null,null,null,null,null,null,null,null,null,null,null,null,null,null,null,null,null,"(100)"]
[null,null,null,null,null,"その他",null,null,null,null,null,null,null,null,null,null,null,null,null,null,null,null,null,null,null,0,null,null,"(18)",null,null,null,null,null,null,null,null,null,null,null,null,null,null,null,null,null,null,null,null,null,null,null,null,null,"合計\n（但し、100点を限度とする）",null,null,null,null,null,null,null,null,null,null,null,null,null,"（B）",null,{"$f":"MIN(100,SUM(BT9,BT11))","v":0}]
[null,null,null,"年代および\n母岩の岩質",null,"中・古生層（結晶片岩、堆積岩）",null,null,null,null,null,null,null,null,null,null,null,null,null,null,null,null,null,null,null,7,null,null,"（択一）",null,null,null,null,null,null,null,null,null,null,null,null,null,null,null,null,null,null,null,null,null,null,null,null,null,null,null,null,null,null,null,null,null,null,null,null,null,null,null,null,null,null,null,"点"]
[null,null,null,null,null,"第三紀層（堆積岩）",null,null,null,null,null,null,null,null,null,null,null,null,null,null,null,null,null,null,null,7]
[null,null,null,null,null,"第四紀層（未固結堆積物または堆積岩）",null,null,null,null,null,null,null,null,null,null,null,null,null,null,null,null,null,null,null,3]
[null,null,null,null,null,"その他（火山岩、火成岩等）",null,null,null,null,null,null,null,null,null,null,null,null,null,null,null,null,null,null,null,0,null,null,"(7)"]
[null,null,null,"湧　水",null,"あ　り（痕跡程度も含む）",null,null,null,null,null,null,null,null,null,null,null,null,null,null,null,null,null,null,null,10,null,null,"（択一）"]
[null,null,null,null,null,"な　し",null,null,null,null,null,null,null,null,null,null,null,null,null,null,null,null,null,null,null,0]
[null,null,null,null,null,null,null,null,null,null,null,null,null,null,null,null,null,null,null,null,null,null,null,null,null,null,null,null,"(10)"]
[null,null,null,null,null,null,null,null,null,null,null,null,null,null,null,"合　　計\n（最大65）",null,null,null,null,null,null,null,null,null,"（A）"]
[null,null,null,null,null,null,null,null,null,null,null,null,null,null,null,null,null,null,null,null,null,null,null,null,null,null,null,null,{"$f":"SUM(AC10,AC14,AC19,AC23)","v":0}]
[null,null,null,null,null,null,null,null,null,null,null,null,null,null,null,null,null,null,null,null,null,null,null,null,null,null,null,null,null,null,"点"]
[null,null,null,null,null,null,null,null,null,null,null,null,null,null,null,null,null,null,null,null,null,null,null,null,null,null,null,null,null,null,null,null,null,null,null,"（C）=MAX（A,B）"]
[null,null,null,"注）（　）は各項目の満点を示す。",null,null,null,null,null,null,null,null,null,null,null,null,null,null,null,null,null,null,null,null,null,null,null,null,null,null,null,null,null,null,null,"要因からの評点",null,null,null,null,null,"（A）"]
[null,null,null,null,null,null,null,null,null,null,null,null,null,null,null,null,null,null,null,null,null,null,null,null,null,null,null,null,null,null,null,null,null,null,null,null,null,null,null,null,null,null,null,{"$f":"AC26","v":0},null,null,"点"]
[null,null,null,"＊ただし複数の着眼点が選択された場合は、高配点のものを択一し、点数を記入する。",null,null,null,null,null,null,null,null,null,null,null,null,null,null,null,null,null,null,null,null,null,null,null,null,null,null,null,null,null,null,null,"履歴からの評点",null,null,null,null,null,"（B）"]
[null,null,null,"　該当する箇所には複数の場合でも配点欄に○印をつける。",null,null,null,null,null,null,null,null,null,null,null,null,null,null,null,null,null,null,null,null,null,null,null,null,null,null,null,null,null,null,null,null,null,null,null,null,null,null,null,{"$f":"BS17","v":0},null,null,"点"]
[null,null,null,null,null,null,null,null,null,null,null,null,null,null,null,null,null,null,null,null,null,null,null,null,null,null,null,null,null,null,null,null,null,null,null,"（A）と（B）の内、\n大きい方",null,null,null,null,null,"（C）=MAX（A,B）"]
[null,null,null,null,null,null,null,null,null,null,null,null,null,null,null,null,null,null,null,null,null,null,null,null,null,null,null,null,null,null,null,null,null,null,null,null,null,null,null,null,null,null,null,{"$f":"MAX(AR30,AR32)","v":0},null,null,"点"]
[null,null,null,null,null,null,null,null,null,null,null,null,null,null,null,null,null,null,null,null,null,null,null,null,null,null,null,null,null,null,null,null,null,null,null,null,null,null,null,null,null,null,null,null,null,null,null,null,null,null,null,null,null,null,"[総合評価]"]
[null,null,null,null,null,null,null,null,null,null,null,null,null,null,null,null,null,null,null,null,null,null,null,null,null,null,null,null,null,null,null,null,null,null,null,null,null,null,null,null,null,null,null,null,null,null,null,null,null,null,null,null,null,null,"対　　　　　　　　応",null,null,null,null,null,null,null,null,null,null,null,null,null,"判　定"]
[]
[null,null,null,null,null,null,null,null,null,null,null,null,null,null,null,null,null,null,null,null,null,null,null,null,null,null,null,null,null,null,null,null,null,null,null,null,null,null,null,null,null,null,null,null,null,null,null,null,null,null,null,null,null,null,"　対策が必要と判断される。"]
[]
[null,null,null,null,null,null,null,null,null,null,null,null,null,null,null,null,null,null,null,null,null,null,null,null,null,null,null,null,"[対策工]（D）=（C）+αまたは（C）×0",null,null,null,null,null,null,null,null,null,null,null,null,null,null,null,null,null,null,null,null,null,null,null,null,null,"　防災カルテを作成し対応する。"]
[null,null,null,null,null,null,null,null,null,null,null,null,null,null,null,null,null,null,null,null,null,null,null,null,null,null,null,null,null,"既設対策工の効果の程度",null,null,null,null,null,null,null,null,null,null,null,"点数（α）",null,null,null,"判　定"]
[null,null,null,null,null,null,null,null,null,null,null,null,null,null,null,null,null,null,null,null,null,null,null,null,null,null,null,null,"　対策工が無い、効果が低い。",null,null,null,null,null,null,null,null,null,null,null,null,"±０点",null,null,null,null,null,null,null,null,null,null,null,null,"　特に新たな対応を必要としない。"]
[]
[null,null,null,null,null,null,null,null,null,null,null,null,null,null,null,null,null,null,null,null,null,null,null,null,null,null,null,null,"　一定の効果。",null,null,null,null,null,null,null,null,null,null,null,null,"－30点",null,null,null,null,null,null,null,null,null,null,null,null,null,"※特に新たな対応を必要としない場合であっても、"]
[null,null,null,null,null,null,null,null,null,null,null,null,null,null,null,null,null,null,null,null,null,null,null,null,null,null,null,null,null,null,null,null,null,null,null,null,null,null,null,null,null,null,null,null,null,null,null,null,null,null,null,null,null,null,null,"　年１～２回の巡視等を行う必要がある。"]
[null,null,null,null,null,null,null,null,null,null,null,null,null,null,null,null,null,null,null,null,null,null,null,null,null,null,null,null,"　高　い。",null,null,null,null,null,null,null,null,null,null,null,null,"×0"]
[]
[null,null,null,null,null,null,null,null,null,null,null,null,null,null,null,null,null,null,null,null,null,null,null,null,null,null,null,null,null,null,null,"合　　　　計",null,null,null,null,null,null,null,null,null,"（D）"]
[null,null,null,null,null,null,null,null,null,null,null,null,null,null,null,null,null,null,null,null,null,null,null,null,null,null,null,null,null,null,null,null,null,null,null,null,null,null,null,null,null,null,null,null,null,null,"点"]

{"sheet":"様式-16","index":2,"n_rows":43,"n_cols":87,"rows_kept":43,"cut":false,"hidden":false,"merged":[[42,81,42,83],[42,84,42,86],[42,44,42,49],[42,50,42,53],[42,54,42,57],[42,58,42,61],[42,62,42,76],[42,77,42,80],[35,84,35,86],[36,50,36,52],[36,53,40,87],[41,55,41,56],[41,57,41,58],[41,59,41,61],[41,62,41,63],[41,64,41,67],[41,68,41,70],[41,52,41,54],[34,79,34,81],[34,82,34,83],[35,44,40,49],[35,50,35,53],[35,54,35,56],[35,57,35,60],[35,61,35,63],[35,64,35,65],[35,66,35,67],[35,68,35,77],[35,78,35,80],[35,81,35,83],[34,61,34,63],[34,64,34,66],[34,68,34,71],[34,72,34,74],[34,76,34,78],[34,44,34,49],[34,50,34,53],[34,54,34,56],[34,57,34,58],[34,59,34,60],[28,44,33,49],[28,50,28,55],[28,69,28,70],[29,50,29,52],[29,53,33,87],[28,56,28,58],[28,59,28,60],[28,61,28,63],[28,64,28,65],[28,66,28,68],[7,1,25,43],[7,44,25,87],[5,40,5,41],[5,43,5,44],[5,45,5,46],[5,48,5,49],[5,37,5,38],[5,57,5,61],[5,62,5,87],[6,1,6,43],[6,44,6,87],[5,1,5,8],[5,9,5,12],[5,13,5,31],[5,32,5,33],[5,34,5,35],[4,45,4,46],[4,56,4,59],[4,60,4,62],[4,63,4,87],[5,51,5,52],[5,54,5,56],[4,1,4,5],[4,14,4,18],[4,19,4,27],[4,28,4,31],[4,32,4,35],[3,78,3,79],[3,80,3,81],[3,82,3,83],[3,84,3,85],[3,86,3,87],[26,1,26,43],[26,44,26,87],[27,54,27,55],[27,57,27,58],[1,27,2,61],[27,1,42,43],[27,44,27,49],[27,51,27,52],[41,44,41,49],[41,50,41,51],[1,65,2,73],[1,74,1,87],[2,74,2,87],[3,65,3,73],[3,74,3,75],[3,76,3,77]]}
[]
[null,null,null,null,null,null,null,null,null,null,null,null,null,null,null,null,null,null,null,null,null,null,null,null,null,null,null,"様式－１６　　被災履歴記録表",null,null,null,null,null,null,null,null,null,null,null,null,null,null,null,null,null,null,null,null,null,null,null,null,null,null,null,null,null,null,null,null,null,null,null,null,null,"管理機関名",null,null,null,null,null,null,null,null,{"$f":"IF('様式-3'!$BY$2<>\"\",'様式-3'!$BY$2,\"\")","v":"大阪府"}]
[null,null,null,null,null,null,null,null,null,null,null,null,null,null,null,null,null,null,null,null,null,null,null,null,null,null,null,null,null,null,null,null,null,null,null,null,null,null,null,null,null,null,null,null,null,null,null,null,null,null,null,null,null,null,null,null,null,null,null,null,null,null,null,null,null,null,null,null,null,null,null,null,null,null,{"$f":"IF('様式-3'!$BY$3<>\"\",'様式-3'!$BY$3,\"\")","v":""}]
[null,null,null,null,null,null,null,null,null,null,null,null,null,null,null,null,null,null,null,null,null,null,null,null,null,null,null,null,null,null,null,null,null,null,null,null,null,null,null,null,null,null,null,null,null,null,null,null,null,null,null,null,null,null,null,null,null,null,null,null,null,null,null,null,null,"管理機関コード",null,null,null,null,null,null,null,null,{"$f":"IF('様式-3'!$BY$4<>\"\",'様式-3'!$BY$4,\"\")","v":2},null,{"$f":"IF('様式-3'!$CA$4<>\"\",'様式-3'!$CA$4,\"\")","v":7},null,{"$f":"IF('様式-3'!$CC$4<>\"\",'様式-3'!$CC$4,\"\")","v":""},null,{"$f":"IF('様式-3'!$CE$4<>\"\",'様式-3'!$CE$4,\"\")","v":""},null,{"$f":"IF('様式-3'!$CG$4<>\"\",'様式-3'!$CG$4,\"\")","v":""},null,{"$f":"IF('様式-3'!$CI$4<>\"\",'様式-3'!$CI$4,\"\")","v":""},null,{"$f":"IF('様式-3'!$CK$4<>\"\",'様式-3'!$CK$4,\"\")","v":""}]
[null,"施設管理番号",null,null,null,null,{"$f":"IF('様式-3'!$G$5<>\"\",'様式-3'!$G$5,\"\")","v":""},{"$f":"IF('様式-3'!$H$5<>\"\",'様式-3'!$H$5,\"\")","v":""},{"$f":"IF('様式-3'!$I$5<>\"\",'様式-3'!$I$5,\"\")","v":""},{"$f":"IF('様式-3'!$J$5<>\"\",'様式-3'!$J$5,\"\")","v":""},{"$f":"IF('様式-3'!$K$5<>\"\",'様式-3'!$K$5,\"\")","v":"C"},{"$f":"IF('様式-3'!$L$5<>\"\",'様式-3'!$L$5,\"\")","v":""},{"$f":"IF('様式-3'!$M$5<>\"\",'様式-3'!$M$5,\"\")","v":""},{"$f":"IF('様式-3'!$N$5<>\"\",'様式-3'!$N$5,\"\")","v":""},"被災種別",null,null,null,null,null,null,null,null,null,null,null,null,null,"発生位置",null,null,null,"距離標（自）",null,null,null,null,null,null,null,null,null,null,null,null,"(至)",null,null,null,null,null,null,null,null,null,null,"上下線の別"]
[null,"H8年度防災点検箇所",null,null,null,null,null,null,null,null,null,null,null,null,null,null,null,null,null,null,null,null,null,null,null,null,null,null,null,null,null,null,"北緯",null,null,null,"度",null,null,"分",null,null,"秒","東経",null,null,null,"度",null,null,"分",null,null,"秒","測地系"]
[null,"平面図（被災・対策）",null,null,null,null,null,null,null,null,null,null,null,null,null,null,null,null,null,null,null,null,null,null,null,null,null,null,null,null,null,null,null,null,null,null,null,null,null,null,null,null,null,null,"断面図（被災・対策）"]
[]
[]
[]
[]
[]
[]
[]
[]
[]
[]
[]
[]
[]
[]
[]
[]
[]
[]
[]
[null,"スケッチ・現況写真（被災・対策）",null,null,null,null,null,null,null,null,null,null,null,null,null,null,null,null,null,null,null,null,null,null,null,null,null,null,null,null,null,null,null,null,null,null,null,null,null,null,null,null,null,null,"特　記　事　項"]
[null,null,null,null,null,null,null,null,null,null,null,null,null,null,null,null,null,null,null,null,null,null,null,null,null,null,null,null,null,null,null,null,null,null,null,null,null,null,null,null,null,null,null,null,"発生年月日",null,null,null,null,null,"H",null,null,"年",null,null,"月",null,null,"日"]
[null,null,null,null,null,null,null,null,null,null,null,null,null,null,null,null,null,null,null,null,null,null,null,null,null,null,null,null,null,null,null,null,null,null,null,null,null,null,null,null,null,null,null,null,"規　　　　模",null,null,null,null,null,"幅、長さ、深さ（m）",null,null,null,null,null,null,null,null,"m、",null,null,null,null,"m、",null,null,null,null,"m"]
[null,null,null,null,null,null,null,null,null,null,null,null,null,null,null,null,null,null,null,null,null,null,null,null,null,null,null,null,null,null,null,null,null,null,null,null,null,null,null,null,null,null,null,null,null,null,null,null,null,null,"コメント："]
[]
[]
[]
[]
[null,null,null,null,null,null,null,null,null,null,null,null,null,null,null,null,null,null,null,null,null,null,null,null,null,null,null,null,null,null,null,null,null,null,null,null,null,null,null,null,null,null,null,null,"誘　　　　因",null,null,null,null,null,"降雨：連続",null,null,null,null,null,null,"mm",null,"最大",null,null,null,null,"mm／hr",null,null,null,"地震：震度",null,null,null,null,null,null,null,"加速度",null,null,null,null,null,"gal"]
[null,null,null,null,null,null,null,null,null,null,null,null,null,null,null,null,null,null,null,null,null,null,null,null,null,null,null,null,null,null,null,null,null,null,null,null,null,null,null,null,null,null,null,null,"被　　　　害",null,null,null,null,null,"人身：死者",null,null,null,null,null,null,"人、 負傷者",null,null,null,null,null,null,"人、",null,"物損：",null,null,null,null,null,null,null,null,null,null,null,"被害額：",null,null,null,null,null,"百万円"]
[null,null,null,null,null,null,null,null,null,null,null,null,null,null,null,null,null,null,null,null,null,null,null,null,null,null,null,null,null,null,null,null,null,null,null,null,null,null,null,null,null,null,null,null,null,null,null,null,null,null,"コメント："]
[]
[]
[]
[]
[null,null,null,null,null,null,null,null,null,null,null,null,null,null,null,null,null,null,null,null,null,null,null,null,null,null,null,null,null,null,null,null,null,null,null,null,null,null,null,null,null,null,null,null,"通行止実績",null,null,null,null,null,"全面",null,null,null,null,"時間、",null,"片側",null,null,null,null,"時間、",null,"路肩規則"]
[null,null,null,null,null,null,null,null,null,null,null,null,null,null,null,null,null,null,null,null,null,null,null,null,null,null,null,null,null,null,null,null,null,null,null,null,null,null,null,null,null,null,null,null,"対　策　工",null,null,null,null,null,"施工年度：",null,null,null,null,null,null,null,"対策工種：",null,null,null,null,null,null,null,null,null,null,null,null,null,null,null,null,null,null,"概算工費：",null,null,null,null,null,null,"百万円"]

{"sheet":"現況記録写真","index":3,"n_rows":6,"n_cols":88,"rows_kept":6,"cut":false,"hidden":false,"merged":[[339,1,339,43],[339,44,356,44],[339,45,339,87],[340,1,354,43],[340,45,354,87],[374,1,375,5],[374,6,375,38],[374,39,375,43],[355,1,356,5],[355,6,356,38],[355,39,356,43],[374,45,375,49],[374,50,375,82],[374,83,375,87],[357,1,357,43],[357,45,357,87],[358,1,358,43],[358,44,375,44],[358,45,358,87],[359,1,373,43],[359,45,373,87],[355,45,356,49],[355,50,356,82],[355,83,356,87],[320,1,320,43],[320,45,320,87],[321,1,321,43],[321,44,338,44],[321,45,321,87],[322,1,336,43],[322,45,336,87],[337,1,338,5],[337,6,338,38],[337,39,338,43],[337,45,338,49],[337,50,338,82],[337,83,338,87],[283,1,283,43],[283,45,283,87],[300,83,301,87],[302,1,302,43],[302,44,319,44],[302,45,302,87],[303,1,317,43],[303,45,317,87],[318,1,319,5],[300,39,301,43],[300,45,301,49],[300,50,301,82],[318,50,319,82],[318,83,319,87],[318,6,319,38],[318,39,319,43],[318,45,319,49],[284,1,284,43],[284,44,301,44],[284,45,284,87],[285,1,299,43],[285,45,299,87],[300,1,301,5],[300,6,301,38],[281,1,282,5],[281,6,282,38],[246,1,246,43],[246,45,246,87],[247,1,247,43],[247,44,264,44],[247,45,247,87],[248,1,262,43],[248,45,262,87],[281,83,282,87],[263,45,264,49],[263,50,264,82],[263,83,264,87],[265,1,265,43],[265,44,282,44],[265,45,265,87],[266,1,280,43],[263,1,264,5],[263,6,264,38],[263,39,264,43],[281,39,282,43],[281,45,282,49],[281,50,282,82],[228,1,228,43],[228,44,245,44],[228,45,228,87],[229,1,243,43],[229,45,243,87],[244,1,245,5],[244,6,245,38],[244,39,245,43],[266,45,280,87],[244,45,245,49],[244,50,245,82],[244,83,245,87],[209,1,209,43],[209,45,209,87],[210,1,210,43],[210,44,227,44],[210,45,210,87],[211,1,225,43],[211,45,225,87],[226,1,227,5],[226,6,227,38],[226,39,227,43],[226,45,227,49],[226,50,227,82],[226,83,227,87],[172,1,172,43],[172,45,172,87],[189,83,190,87],[191,1,191,43],[191,44,208,44],[191,45,191,87],[192,1,206,43],[192,45,206,87],[207,1,208,5],[189,39,190,43],[189,45,190,49],[189,50,190,82],[207,50,208,82],[207,83,208,87],[207,6,208,38],[207,39,208,43],[207,45,208,49],[173,1,173,43],[173,44,190,44],[173,45,173,87],[174,1,188,43],[174,45,188,87],[189,1,190,5],[189,6,190,38],[170,1,171,5],[170,6,171,38],[135,1,135,43],[135,45,135,87],[136,1,136,43],[136,44,153,44],[136,45,136,87],[137,1,151,43],[137,45,151,87],[170,83,171,87],[152,45,153,49],[152,50,153,82],[152,83,153,87],[154,1,154,43],[154,44,171,44],[154,45,154,87],[155,1,169,43],[152,1,153,5],[152,6,153,38],[152,39,153,43],[170,39,171,43],[170,45,171,49],[170,50,171,82],[117,1,117,43],[117,44,134,44],[117,45,117,87],[118,1,132,43],[118,45,132,87],[133,1,134,5],[133,6,134,38],[133,39,134,43],[155,45,169,87],[133,45,134,49],[133,50,134,82],[133,83,134,87],[98,1,98,43],[98,45,98,87],[99,1,99,43],[99,44,116,44],[99,45,99,87],[100,1,114,43],[100,45,114,87],[115,1,116,5],[115,6,116,38],[115,39,116,43],[115,45,116,49],[115,50,116,82],[115,83,116,87],[96,6,97,38],[96,39,97,43],[96,45,97,49],[62,1,62,43],[62,44,79,44],[62,45,62,87],[63,1,77,43],[63,45,77,87],[78,1,79,5],[78,6,79,38],[78,83,79,87],[80,1,80,43],[80,44,97,44],[80,45,80,87],[81,1,95,43],[81,45,95,87],[96,1,97,5],[78,39,79,43],[78,45,79,49],[78,50,79,82],[96,50,97,82],[96,83,97,87],[44,45,58,87],[59,1,60,5],[59,6,60,38],[7,45,21,87],[22,1,23,5],[22,6,23,38],[41,83,42,87],[59,83,60,87],[61,1,61,43],[61,45,61,87],[26,1,40,43],[41,6,42,38],[41,39,42,43],[43,1,43,43],[43,44,60,44],[43,45,43,87],[44,1,58,43],[26,45,40,87],[59,39,60,43],[59,45,60,49],[59,50,60,82],[41,45,42,49],[41,50,42,82],[24,1,24,43],[24,45,24,87],[25,1,25,43],[25,44,42,44],[25,45,25,87],[41,1,42,5],[22,45,23,49],[22,83,23,87],[5,69,5,70],[5,77,5,78],[22,39,23,43],[5,60,5,61],[5,63,5,64],[5,66,5,67],[22,50,23,82],[6,44,23,44],[6,45,6,87],[7,1,21,43],[5,74,5,75],[4,19,4,24],[6,1,6,43],[5,83,5,87],[4,1,4,5],[4,14,4,18],[4,25,4,27],[4,28,4,49],[4,50,4,53],[4,83,4,86],[5,1,5,3],[5,4,5,6],[5,7,5,9],[5,10,5,16],[5,17,5,21],[5,80,5,82],[5,22,5,24],[5,25,5,27],[5,45,5,47],[5,48,5,57],[5,58,5,59],[5,28,5,44],[4,63,4,64],[4,74,4,77],[5,71,5,72],[4,78,4,80],[1,27,2,61],[1,65,2,73],[1,74,1,87],[2,74,2,87],[3,65,3,73],[3,74,3,75],[3,76,3,77],[3,78,3,79],[3,80,3,81],[3,82,3,83],[3,84,3,85],[3,86,3,87],[4,81,4,82]]}
[]
[null,null,null,null,null,null,null,null,null,null,null,null,null,null,null,null,null,null,null,null,null,null,null,null,null,null,null,"現状記録写真",null,null,null,null,null,null,null,null,null,null,null,null,null,null,null,null,null,null,null,null,null,null,null,null,null,null,null,null,null,null,null,null,null,null,null,null,null,"管理機関名",null,null,null,null,null,null,null,null,{"$f":"IF('様式-3'!$BY$2<>\"\",'様式-3'!$BY$2,\"\")","v":"大阪府"}]
[null,null,null,null,null,null,null,null,null,null,null,null,null,null,null,null,null,null,null,null,null,null,null,null,null,null,null,null,null,null,null,null,null,null,null,null,null,null,null,null,null,null,null,null,null,null,null,null,null,null,null,null,null,null,null,null,null,null,null,null,null,null,null,null,null,null,null,null,null,null,null,null,null,null,{"$f":"IF('様式-3'!$BY$3<>\"\",'様式-3'!$BY$3,\"\")","v":""}]
[null,null,null,null,null,null,null,null,null,null,null,null,null,null,null,null,null,null,null,null,null,null,null,null,null,null,null,null,null,null,null,null,null,null,null,null,null,null,null,null,null,null,null,null,null,null,null,null,null,null,null,null,null,null,null,null,null,null,null,null,null,null,null,null,null,"管理機関コード",null,null,null,null,null,null,null,null,{"$f":"IF('様式-3'!$BY$4<>\"\",'様式-3'!$BY$4,\"\")","v":2},null,{"$f":"IF('様式-3'!$CA$4<>\"\",'様式-3'!$CA$4,\"\")","v":7},null,{"$f":"IF('様式-3'!$CC$4<>\"\",'様式-3'!$CC$4,\"\")","v":""},null,{"$f":"IF('様式-3'!$CE$4<>\"\",'様式-3'!$CE$4,\"\")","v":""},null,{"$f":"IF('様式-3'!$CG$4<>\"\",'様式-3'!$CG$4,\"\")","v":""},null,{"$f":"IF('様式-3'!$CI$4<>\"\",'様式-3'!$CI$4,\"\")","v":""},null,{"$f":"IF('様式-3'!$CK$4<>\"\",'様式-3'!$CK$4,\"\")","v":""}]
[null,"施設管理番号",null,null,null,null,{"$f":"IF('様式-3'!$G$5<>\"\",'様式-3'!$G$5,\"\")","v":""},{"$f":"IF('様式-3'!$H$5<>\"\",'様式-3'!$H$5,\"\")","v":""},{"$f":"IF('様式-3'!$I$5<>\"\",'様式-3'!$I$5,\"\")","v":""},{"$f":"IF('様式-3'!$J$5<>\"\",'様式-3'!$J$5,\"\")","v":""},{"$f":"IF('様式-3'!$K$5<>\"\",'様式-3'!$K$5,\"\")","v":"C"},{"$f":"IF('様式-3'!$L$5<>\"\",'様式-3'!$L$5,\"\")","v":""},{"$f":"IF('様式-3'!$M$5<>\"\",'様式-3'!$M$5,\"\")","v":""},{"$f":"IF('様式-3'!$N$5<>\"\",'様式-3'!$N$5,\"\")","v":""},"点検対象項目",null,null,null,null,{"$f":"IF('様式-3'!$T$5<>\"\",'様式-3'!$T$5,\"\")","v":"地すべり"},null,null,null,null,null,"路線名",null,null,{"$f":"IF('様式-3'!$AC$5<>\"\",'様式-3'!$AC$5,\"\")","v":""},null,null,null,null,null,null,null,null,null,null,null,null,null,null,null,null,null,null,null,null,null,"距離標（自）",null,null,null,{"$f":"IF('様式-3'!$BE$5<>\"\",'様式-3'!$BE$5,\"\")","v":""},{"$f":"IF('様式-3'!$BF$5<>\"\",'様式-3'!$BF$5,\"\")","v":""},{"$f":"IF('様式-3'!$BG$5<>\"\",'様式-3'!$BG$5,\"\")","v":""},{"$f":"IF('様式-3'!$BH$5<>\"\",'様式-3'!$BH$5,\"\")","v":""},{"$f":"IF('様式-3'!$BI$5<>\"\",'様式-3'!$BI$5,\"\")","v":""},{"$f":"IF('様式-3'!$BJ$5<>\"\",'様式-3'!$BJ$5,\"\")","v":""},{"$f":"IF('様式-3'!$BK$5<>\"\",'様式-3'!$BK$5,\"\")","v":""},{"$f":"IF('様式-3'!$BL$5<>\"\",'様式-3'!$BL$5,\"\")","v":""},{"$f":"IF('様式-3'!$BM$5<>\"\",'様式-3'!$BM$5,\"\")","v":""},"(至)",null,{"$f":"IF('様式-3'!$BP$5<>\"\",'様式-3'!$BP$5,\"\")","v":""},{"$f":"IF('様式-3'!$BQ$5<>\"\",'様式-3'!$BQ$5,\"\")","v":""},{"$f":"IF('様式-3'!$BR$5<>\"\",'様式-3'!$BR$5,\"\")","v":""},{"$f":"IF('様式-3'!$BS$5<>\"\",'様式-3'!$BS$5,\"\")","v":""},{"$f":"IF('様式-3'!$BT$5<>\"\",'様式-3'!$BT$5,\"\")","v":""},{"$f":"IF('様式-3'!$BU$5<>\"\",'様式-3'!$BU$5,\"\")","v":""},{"$f":"IF('様式-3'!$BV$5<>\"\",'様式-3'!$BV$5,\"\")","v":""},{"$f":"IF('様式-3'!$BW$5<>\"\",'様式-3'!$BW$5,\"\")","v":""},{"$f":"IF('様式-3'!$BX$5<>\"\",'様式-3'!$BX$5,\"\")","v":""},"上下線の別",null,null,null,{"$f":"IF('様式-3'!$CC$5<>\"\",'様式-3'!$CC$5,\"\")","v":""},null,null,"延長",null,{"$f":"IF('様式-3'!$CH$5<>\"\",'様式-3'!$CH$5,\"\")","v":""},null,null,null,"m"]
[null,"事業区分",null,null,{"$f":"IF('様式-3'!$E$6<>\"\",'様式-3'!$E$6,\"\")","v":""},null,null,"道路種別",null,null,{"$f":"IF('様式-3'!$K$6<>\"\",'様式-3'!$K$6,\"\")","v":""},null,null,null,null,null,null,"現道・旧道路区分",null,null,null,null,{"$f":"IF('様式-3'!$W$6<>\"\",'様式-3'!$W$6,\"\")","v":""},null,null,"所在地",null,null,{"$f":"IF('様式-3'!$AC$6<>\"\",'様式-3'!$AC$6,\"\")","v":""},null,null,null,null,null,null,null,null,null,null,null,null,null,null,null,null,"位置目印",null,null,{"$f":"IF('様式-3'!$AX$6<>\"\",'様式-3'!$AX$6,\"\")","v":""},null,null,null,null,null,null,null,null,null,"北緯",null,{"$f":"IF('様式-3'!$BK$6<>\"\",'様式-3'!$BK$6,\"\")","v":""},null,"度",{"$f":"IF('様式-3'!$BN$6<>\"\",'様式-3'!$BN$6,\"\")","v":""},null,"分",{"$f":"IF('様式-3'!$BQ$6<>\"\",'様式-3'!$BQ$6,\"\")","v":""},null,"秒","東経",null,{"$f":"IF('様式-3'!$BV$6<>\"\",'様式-3'!$BV$6,\"\")","v":""},null,"度",{"$f":"IF('様式-3'!$BY$6<>\"\",'様式-3'!$BY$6,\"\")","v":""},null,"分",{"$f":"IF('様式-3'!$CB$6<>\"\",'様式-3'!$CB$6,\"\")","v":""},null,"秒","測地系",null,null,{"$f":"IF('様式-3'!$CH$6<>\"\",'様式-3'!$CH$6,\"\")","v":""}]

{"sheet":"MASTER","index":4,"n_rows":298,"n_cols":118,"rows_kept":298,"cut":false,"hidden":true,"merged":[[0,3,0,4],[0,37,0,38],[0,74,0,75],[0,79,0,80],[0,32,0,33],[0,58,0,60],[0,53,0,54],[0,64,0,65],[0,42,0,49],[0,114,0,115],[0,69,0,70],[0,94,0,95],[0,89,0,90],[0,99,0,100],[0,104,0,105],[0,109,0,110],[0,84,0,85]]}
["帳票名","InspectionDP3",null,"帳票名",null,null,null,null,"LIST_マイナス",null,null,null,"LIST_数字",null,null,null,"LIST_上下他",null,null,null,"LIST_測地系",null,null,null,"LIST_事務所",null,null,null,"LIST_被災履歴",null,null,null,"LIST_点検対象項目",null,null,null,null,"CD_BG_ORNOT",null,null,null,null,"TB_CO_ROUTE",null,null,null,null,null,null,null,null,null,null,"TB_CO_OFFICE",null,null,null,null,"CD_DP_INSPECTION_SCOPE",null,null,null,null,null,"CD_ROUTEKIND",null,null,null,null,"CD_NEWOLD",null,null,null,null,"CD_MC_DIVISION",null,null,null,null,"CD_BG_CHARGEROAD",null,null,null,null,"CD_DP_ADVANCE_REGULATION",null,null,null,null,"CD_BG_DIDORNOT",null,null,null,null,"CD_BG_EMERGENCY",null,null,null,null,"CD_WEATHER",null,null,null,null,"CD_DP_JUDGE",null,null,null,null,"CD_DP_STATE",null,null,null,null,"CD_DP_EQ_STABLE"]
["FacilityID",null,null,"CD","名称",null,"コード数",null,"名称",null,"コード数",null,"名称",null,"コード数",null,"名称",null,"コード数",null,"名称",null,"コード数",null,"名称",null,"コード数",null,"名称",null,"コード数",null,"CD","名称",null,"コード数",null,"CD","名称",null,"コード数",null,"RouteID","DisplayName","RouteBaseID","RouteKindCD","RouteKindName","InnerNo","NewOldCD","NewOldName",null,"コード数",null,"CD","名称",null,"コード数",null,"CD","名称","名称",null,"コード数",null,"CD","名称",null,"コード数",null,"CD","名称",null,"コード数",null,"CD","名称",null,"コード数",null,"CD","名称",null,"コード数",null,"CD","名称",null,"コード数",null,"CD","名称",null,"コード数",null,"CD","名称",null,"コード数",null,"CD","名称",null,"コード数",null,"CD","名称",null,"コード数",null,"CD","名称",null,"コード数",null,"CD","名称",null,"コード数"]
["テーブル名","TB_DP_INSPECTION",null,0,"-",null,{"$f":"IF(MAX(INDEX(($E$3:$E$60000<>\"\")*ROW($E$3:$E$60000),0))-2<0,0,MAX(INDEX(($E$3:$E$60000<>\"\")*ROW($E$3:$E$60000),0))-2)","v":28},null,null,null,{"$f":"IF(MAX(INDEX(($I$3:$I$60000<>\"\")*ROW($I$3:$I$60000),0))-2<0,0,MAX(INDEX(($I$3:$I$60000<>\"\")*ROW($I$3:$I$60000),0))-2)","v":2},null,0,null,{"$f":"IF(MAX(INDEX(($M$3:$M$60000<>\"\")*ROW($M$3:$M$60000),0))-2<0,0,MAX(INDEX(($M$3:$M$60000<>\"\")*ROW($M$3:$M$60000),0))-2)","v":10},null,"上",null,{"$f":"IF(MAX(INDEX(($Q$3:$Q$60000<>\"\")*ROW($Q$3:$Q$60000),0))-2<0,0,MAX(INDEX(($Q$3:$Q$60000<>\"\")*ROW($Q$3:$Q$60000),0))-2)","v":3},null,"日本測地系",null,{"$f":"IF(MAX(INDEX(($U$3:$U$60000<>\"\")*ROW($U$3:$U$60000),0))-2<0,0,MAX(INDEX(($U$3:$U$60000<>\"\")*ROW($U$3:$U$60000),0))-2)","v":2},null,"I",null,{"$f":"IF(MAX(INDEX(($Y$3:$Y$60000<>\"\")*ROW($Y$3:$Y$60000),0))-2<0,0,MAX(INDEX(($Y$3:$Y$60000<>\"\")*ROW($Y$3:$Y$60000),0))-2)","v":7},null,null,null,{"$f":"IF(MAX(INDEX(($AC$3:$AC$60000<>\"\")*ROW($AC$3:$AC$60000),0))-2<0,0,MAX(INDEX(($AC$3:$AC$60000<>\"\")*ROW($AC$3:$AC$60000),0))-2)","v":3},null,"A","落石・崩壊",null,{"$f":"IF(MAX(INDEX(($AH$3:$AH$60000<>\"\")*ROW($AH$3:$AH$60000),0))-2<0,0,MAX(INDEX(($AH$3:$AH$60000<>\"\")*ROW($AH$3:$AH$60000),0))-2)","v":8},null,0,"-",null,{"$f":"IF(MAX(INDEX(($AM$3:$AM$60000<>\"\")*ROW($AM$3:$AM$60000),0))-2<0,0,MAX(INDEX(($AM$3:$AM$60000<>\"\")*ROW($AM$3:$AM$60000),0))-2)","v":3},null,1,"１６６号",1,2,"一般国道",166,1,"現道",null,{"$f":"IF(MAX(INDEX(($AR$3:$AR$60000<>\"\")*ROW($AR$3:$AR$60000),0))-2<0,0,MAX(INDEX(($AR$3:$AR$60000<>\"\")*ROW($AR$3:$AR$60000),0))-2)","v":296},null,0,"-",null,{"$f":"IF(MAX(INDEX(($BC$3:$BC$60000<>\"\")*ROW($BC$3:$BC$60000),0))-2<0,0,MAX(INDEX(($BC$3:$BC$60000<>\"\")*ROW($BC$3:$BC$60000),0))-2)","v":10},null,0,"-",null,null,{"$f":"IF(MAX(INDEX(($BH$3:$BH$60000<>\"\")*ROW($BH$3:$BH$60000),0))-2<0,0,MAX(INDEX(($BH$3:$BH$60000<>\"\")*ROW($BH$3:$BH$60000),0))-2)","v":11},null,0,"-",null,{"$f":"IF(MAX(INDEX(($BN$3:$BN$60000<>\"\")*ROW($BN$3:$BN$60000),0))-2<0,0,MAX(INDEX(($BN$3:$BN$60000<>\"\")*ROW($BN$3:$BN$60000),0))-2)","v":9},null,0,"-",null,{"$f":"IF(MAX(INDEX(($BS$3:$BS$60000<>\"\")*ROW($BS$3:$BS$60000),0))-2<0,0,MAX(INDEX(($BS$3:$BS$60000<>\"\")*ROW($BS$3:$BS$60000),0))-2)","v":5},null,0,"-",null,{"$f":"IF(MAX(INDEX(($BX$3:$BX$60000<>\"\")*ROW($BX$3:$BX$60000),0))-2<0,0,MAX(INDEX(($BX$3:$BX$60000<>\"\")*ROW($BX$3:$BX$60000),0))-2)","v":7},null,0,"-",null,{"$f":"IF(MAX(INDEX(($CC$3:$CC$60000<>\"\")*ROW($CC$3:$CC$60000),0))-2<0,0,MAX(INDEX(($CC$3:$CC$60000<>\"\")*ROW($CC$3:$CC$60000),0))-2)","v":8},null,0,"-",null,{"$f":"IF(MAX(INDEX(($CH$3:$CH$60000<>\"\")*ROW($CH$3:$CH$60000),0))-2<0,0,MAX(INDEX(($CH$3:$CH$60000<>\"\")*ROW($CH$3:$CH$60000),0))-2)","v":5},null,0,"-",null,{"$f":"IF(MAX(INDEX(($CM$3:$CM$60000<>\"\")*ROW($CM$3:$CM$60000),0))-2<0,0,MAX(INDEX(($CM$3:$CM$60000<>\"\")*ROW($CM$3:$CM$60000),0))-2)","v":3},null,0,"-",null,{"$f":"IF(MAX(INDEX(($CR$3:$CR$60000<>\"\")*ROW($CR$3:$CR$60000),0))-2<0,0,MAX(INDEX(($CR$3:$CR$60000<>\"\")*ROW($CR$3:$CR$60000),0))-2)","v":6},null,0,"-",null,{"$f":"IF(MAX(INDEX(($CW$3:$CW$60000<>\"\")*ROW($CW$3:$CW$60000),0))-2<0,0,MAX(INDEX(($CW$3:$CW$60000<>\"\")*ROW($CW$3:$CW$60000),0))-2)","v":5},null,0,"-",null,{"$f":"IF(MAX(INDEX(($DB$3:$DB$60000<>\"\")*ROW($DB$3:$DB$60000),0))-2<0,0,MAX(INDEX(($DB$3:$DB$60000<>\"\")*ROW($DB$3:$DB$60000),0))-2)","v":8},null,0,"-",null,{"$f":"IF(MAX(INDEX(($DG$3:$DG$60000<>\"\")*ROW($DG$3:$DG$60000),0))-2<0,0,MAX(INDEX(($DG$3:$DG$60000<>\"\")*ROW($DG$3:$DG$60000),0))-2)","v":5},null,0,"-",null,{"$f":"IF(MAX(INDEX(($DL$3:$DL$60000<>\"\")*ROW($DL$3:$DL$60000),0))-2<0,0,MAX(INDEX(($DL$3:$DL$60000<>\"\")*ROW($DL$3:$DL$60000),0))-2)","v":3}]
["O_DP_INSPECTION_ID",null,null,1,"FacilityTN",null,null,null,"-",null,null,null,1,null,null,null,"下",null,null,null,"世界測地系",null,null,null,"B",null,null,null,"被災履歴記録表参照",null,null,null,"B","岩盤崩壊",null,null,null,1,"無",null,null,null,2,"１６８号",2,2,"一般国道",168,1,"現道",null,null,null,21,"堺泉北港湾事務所",null,null,null,1,"落石・崩壊",null,null,null,null,1,"高速自動車国道",null,null,null,1,"現道",null,null,null,1,"上り",null,null,null,1,"一般（無料）橋",null,null,null,1,"なし",null,null,null,1,"該当",null,null,null,1,"広域緊急交通路（１４ルート）",null,null,null,1,"晴",null,null,null,1,"要対策",null,null,null,1,"未着手",null,null,null,1,"安定"]
[null,null,null,2,"FacilityCS",null,null,null,null,null,null,null,2,null,null,null,"他",null,null,null,null,null,null,null,"H",null,null,null,"詳細不明：",null,null,null,"C","地すべり",null,null,null,2,"有",null,null,null,3,"（旧）１６８号",2,2,"一般国道",168,2,"旧道",null,null,null,22,"阪南港湾事務所",null,null,null,2,"岩石崩壊",null,null,null,null,2,"一般国道",null,null,null,2,"旧道",null,null,null,2,"下り",null,null,null,2,"有料橋",null,null,null,2,"通行",null,null,null,2,"非該当",null,null,null,2,"広域緊急交通路（その他）",null,null,null,2,"曇",null,null,null,2,"経過観察",null,null,null,2,"施工中",null,null,null,2,"不安定"]
[null,null,null,3,"FacilityRE1",null,null,null,null,null,null,null,3,null,null,null,null,null,null,null,null,null,null,null,"Y",null,null,null,null,null,null,null,"D","雪崩",null,null,null,null,null,null,null,null,4,"（新）１６８号",2,2,"一般国道",168,3,"新道",null,null,null,41,"池田土木事務所",null,null,null,3,"地すべり",null,null,null,null,3,"一般府道",null,null,null,3,"新道",null,null,null,3,"上り・下り",null,null,null,3,"不明",null,null,null,3,"特殊",null,null,null,null,null,null,null,null,3,"一般道（緊急交通路以外）",null,null,null,3,"雨",null,null,null,3,"対策不要1",null,null,null,3,"完了"]
[null,null,null,4,"FacilityRE2",null,null,null,null,null,null,null,4,null,null,null,null,null,null,null,null,null,null,null,"T",null,null,null,null,null,null,null,"E","土石流",null,null,null,null,null,null,null,null,5,"１７０号",3,2,"一般国道",170,1,"現道",null,null,null,42,"茨木土木事務所",null,null,null,4,"雪崩",null,null,null,null,4,"主要地方道",null,null,null,4,"新新道",null,null,null,4,"中央",null,null,null,4,"一般道－無料橋",null,null,null,21,"通行規制",null,null,null,null,null,null,null,null,11,"指定無",null,null,null,4,"雪",null,null,null,4,"対策不要2",null,null,null,4,"撤去"]
[null,null,null,5,"FacilityRE3",null,null,null,null,null,null,null,5,null,null,null,null,null,null,null,null,null,null,null,"O",null,null,null,null,null,null,null,"F","盛土",null,null,null,null,null,null,null,null,8,"（旧）１７０号",3,2,"一般国道",170,2,"旧道",null,null,null,43,"枚方土木事務所",null,null,null,5,"土石流",null,null,null,null,5,"市町村道　１級",null,null,null,null,null,null,null,null,5,"側道",null,null,null,5,"一般道－有料橋",null,null,null,null,null,null,null,null,null,null,null,null,null,12,"指定有",null,null,null,null,null,null,null,null,11,"対策が必要と判断される"]
[null,null,null,6,"FacilityRE4",null,null,null,null,null,null,null,6,null,null,null,null,null,null,null,null,null,null,null,"K",null,null,null,null,null,null,null,"G","擁壁",null,null,null,null,null,null,null,null,10,"（新）１７０号",3,2,"一般国道",170,3,"新道",null,null,null,44,"八尾土木事務所",null,null,null,6,"盛土",null,null,null,null,6,"市町村道　２級",null,null,null,null,null,null,null,null,6,"横断",null,null,null,6,"自専道－無料橋",null,null,null,null,null,null,null,null,null,null,null,null,null,null,null,null,null,null,null,null,null,null,null,12,"防災カルテを作成し対応する"]
[null,null,null,7,"FacilityRE5",null,null,null,null,null,null,null,7,null,null,null,null,null,null,null,null,null,null,null,null,null,null,null,null,null,null,null,"H","橋梁基礎の洗掘",null,null,null,null,null,null,null,null,12,"１７３号",4,2,"一般国道",173,1,"現道",null,null,null,45,"富田林土木事務所",null,null,null,7,"擁壁",null,null,null,null,7,"市町村道　その他",null,null,null,null,null,null,null,null,null,null,null,null,null,7,"自専道－有料橋",null,null,null,null,null,null,null,null,null,null,null,null,null,null,null,null,null,null,null,null,null,null,null,13,"特に新たな対応を必要としない"]
[null,null,null,8,"FacilityP",null,null,null,null,null,null,null,8,null,null,null,null,null,null,null,null,null,null,null,null,null,null,null,null,null,null,null,null,null,null,null,null,null,null,null,null,null,14,"１７６号",5,2,"一般国道",176,1,"現道",null,null,null,46,"鳳土木事務所",null,null,null,8,"橋梁基礎の洗掘",null,null,null,null,99,"その他"]
[null,null,null,9,"InspectionTN",null,null,null,null,null,null,null,9,null,null,null,null,null,null,null,null,null,null,null,null,null,null,null,null,null,null,null,null,null,null,null,null,null,null,null,null,null,16,"（旧）１７６号",5,2,"一般国道",176,2,"旧道",null,null,null,47,"岸和田土木事務所",null,null,null,9,"地吹雪"]
[null,null,null,10,"InspectionCS",null,null,null,null,null,null,null,null,null,null,null,null,null,null,null,null,null,null,null,null,null,null,null,null,null,null,null,null,null,null,null,null,null,null,null,null,null,17,"（新）１７６号",5,2,"一般国道",176,3,"新道",null,null,null,null,null,null,null,null,10,"その他"]
[null,null,null,11,"InspectionDP1",null,null,null,null,null,null,null,null,null,null,null,null,null,null,null,null,null,null,null,null,null,null,null,null,null,null,null,null,null,null,null,null,null,null,null,null,null,18,"３０７号",6,2,"一般国道",307,1,"現道"]
[null,null,null,12,"InspectionDP2",null,null,null,null,null,null,null,null,null,null,null,null,null,null,null,null,null,null,null,null,null,null,null,null,null,null,null,null,null,null,null,null,null,null,null,null,null,20,"３０８号",7,2,"一般国道",308,1,"現道"]
[null,null,null,13,"InspectionDP3",null,null,null,null,null,null,null,null,null,null,null,null,null,null,null,null,null,null,null,null,null,null,null,null,null,null,null,null,null,null,null,null,null,null,null,null,null,21,"３０９号",8,2,"一般国道",309,1,"現道"]
[null,null,null,14,"InspectionDP4",null,null,null,null,null,null,null,null,null,null,null,null,null,null,null,null,null,null,null,null,null,null,null,null,null,null,null,null,null,null,null,null,null,null,null,null,null,22,"（旧）３０９号",8,2,"一般国道",309,2,"旧道"]
[null,null,null,15,"InspectionDP5",null,null,null,null,null,null,null,null,null,null,null,null,null,null,null,null,null,null,null,null,null,null,null,null,null,null,null,null,null,null,null,null,null,null,null,null,null,23,"（新）３０９号",8,2,"一般国道",309,3,"新道"]
[null,null,null,16,"InspectionDP6",null,null,null,null,null,null,null,null,null,null,null,null,null,null,null,null,null,null,null,null,null,null,null,null,null,null,null,null,null,null,null,null,null,null,null,null,null,24,"３１０号",9,2,"一般国道",310,1,"現道"]
[null,null,null,17,"InspectionDP7",null,null,null,null,null,null,null,null,null,null,null,null,null,null,null,null,null,null,null,null,null,null,null,null,null,null,null,null,null,null,null,null,null,null,null,null,null,25,"３７１号",10,2,"一般国道",371,1,"現道"]
[null,null,null,18,"InspectionDP8",null,null,null,null,null,null,null,null,null,null,null,null,null,null,null,null,null,null,null,null,null,null,null,null,null,null,null,null,null,null,null,null,null,null,null,null,null,26,"（旧）３７１号",10,2,"一般国道",371,2,"旧道"]
[null,null,null,19,"InspectionDP9",null,null,null,null,null,null,null,null,null,null,null,null,null,null,null,null,null,null,null,null,null,null,null,null,null,null,null,null,null,null,null,null,null,null,null,null,null,27,"（新）３７１号",10,2,"一般国道",371,3,"新道"]
[null,null,null,20,"InspectionDP10",null,null,null,null,null,null,null,null,null,null,null,null,null,null,null,null,null,null,null,null,null,null,null,null,null,null,null,null,null,null,null,null,null,null,null,null,null,30,"４２３号",11,2,"一般国道",423,1,"現道"]
[null,null,null,21,"InspectionFS",null,null,null,null,null,null,null,null,null,null,null,null,null,null,null,null,null,null,null,null,null,null,null,null,null,null,null,null,null,null,null,null,null,null,null,null,null,33,"４７７号",12,2,"一般国道",477,1,"現道"]
[null,null,null,22,"RoadSurface",null,null,null,null,null,null,null,null,null,null,null,null,null,null,null,null,null,null,null,null,null,null,null,null,null,null,null,null,null,null,null,null,null,null,null,null,null,34,"（旧）４７７号",12,2,"一般国道",477,2,"旧道"]
[null,null,null,23,"RoadBelow",null,null,null,null,null,null,null,null,null,null,null,null,null,null,null,null,null,null,null,null,null,null,null,null,null,null,null,null,null,null,null,null,null,null,null,null,null,35,"（新）４７７号",12,2,"一般国道",477,3,"新道"]
[null,null,null,24,"照明灯台帳一覧表",null,null,null,null,null,null,null,null,null,null,null,null,null,null,null,null,null,null,null,null,null,null,null,null,null,null,null,null,null,null,null,null,null,null,null,null,null,36,"４７９号",13,2,"一般国道",479,1,"現道"]
[null,null,null,25,"街路樹台帳テンプレート",null,null,null,null,null,null,null,null,null,null,null,null,null,null,null,null,null,null,null,null,null,null,null,null,null,null,null,null,null,null,null,null,null,null,null,null,null,37,"４８０号",14,2,"一般国道",480,1,"現道"]
[null,null,null,26,"路面下空洞調査",null,null,null,null,null,null,null,null,null,null,null,null,null,null,null,null,null,null,null,null,null,null,null,null,null,null,null,null,null,null,null,null,null,null,null,null,null,38,"（旧）４８０号",14,2,"一般国道",480,2,"旧道"]
[null,null,null,27,"路面性状調査",null,null,null,null,null,null,null,null,null,null,null,null,null,null,null,null,null,null,null,null,null,null,null,null,null,null,null,null,null,null,null,null,null,null,null,null,null,39,"（新）４８０号",14,2,"一般国道",480,3,"新道"]
[null,null,null,null,null,null,null,null,null,null,null,null,null,null,null,null,null,null,null,null,null,null,null,null,null,null,null,null,null,null,null,null,null,null,null,null,null,null,null,null,null,null,40,"４８１号",15,2,"一般国道",481,1,"現道"]
[null,null,null,null,null,null,null,null,null,null,null,null,null,null,null,null,null,null,null,null,null,null,null,null,null,null,null,null,null,null,null,null,null,null,null,null,null,null,null,null,null,null,41,"富田林太子線",16,4,"主要地方道",102,1,"現道"]
[null,null,null,null,null,null,null,null,null,null,null,null,null,null,null,null,null,null,null,null,null,null,null,null,null,null,null,null,null,null,null,null,null,null,null,null,null,null,null,null,null,null,42,"枚方亀岡線",17,4,"主要地方道",103,1,"現道"]
[null,null,null,null,null,null,null,null,null,null,null,null,null,null,null,null,null,null,null,null,null,null,null,null,null,null,null,null,null,null,null,null,null,null,null,null,null,null,null,null,null,null,43,"茨木亀岡線",18,4,"主要地方道",104,1,"現道"]
[null,null,null,null,null,null,null,null,null,null,null,null,null,null,null,null,null,null,null,null,null,null,null,null,null,null,null,null,null,null,null,null,null,null,null,null,null,null,null,null,null,null,44,"大阪高槻京都線",19,4,"主要地方道",105,1,"現道"]
[null,null,null,null,null,null,null,null,null,null,null,null,null,null,null,null,null,null,null,null,null,null,null,null,null,null,null,null,null,null,null,null,null,null,null,null,null,null,null,null,null,null,45,"（旧）大阪高槻京都線",19,4,"主要地方道",105,2,"旧道"]
[null,null,null,null,null,null,null,null,null,null,null,null,null,null,null,null,null,null,null,null,null,null,null,null,null,null,null,null,null,null,null,null,null,null,null,null,null,null,null,null,null,null,46,"（新）大阪高槻京都線",19,4,"主要地方道",105,3,"新道"]
[null,null,null,null,null,null,null,null,null,null,null,null,null,null,null,null,null,null,null,null,null,null,null,null,null,null,null,null,null,null,null,null,null,null,null,null,null,null,null,null,null,null,47,"堺大和高田線",20,4,"主要地方道",106,1,"現道"]
[null,null,null,null,null,null,null,null,null,null,null,null,null,null,null,null,null,null,null,null,null,null,null,null,null,null,null,null,null,null,null,null,null,null,null,null,null,null,null,null,null,null,48,"堺富田林線",21,4,"主要地方道",107,1,"現道"]
[null,null,null,null,null,null,null,null,null,null,null,null,null,null,null,null,null,null,null,null,null,null,null,null,null,null,null,null,null,null,null,null,null,null,null,null,null,null,null,null,null,null,49,"八尾枚方線",22,4,"主要地方道",108,1,"現道"]
[null,null,null,null,null,null,null,null,null,null,null,null,null,null,null,null,null,null,null,null,null,null,null,null,null,null,null,null,null,null,null,null,null,null,null,null,null,null,null,null,null,null,51,"枚方富田林泉佐野線",23,4,"主要地方道",109,1,"現道"]
[null,null,null,null,null,null,null,null,null,null,null,null,null,null,null,null,null,null,null,null,null,null,null,null,null,null,null,null,null,null,null,null,null,null,null,null,null,null,null,null,null,null,53,"（旧）枚方富田林泉佐野線",23,4,"主要地方道",109,2,"旧道"]
[null,null,null,null,null,null,null,null,null,null,null,null,null,null,null,null,null,null,null,null,null,null,null,null,null,null,null,null,null,null,null,null,null,null,null,null,null,null,null,null,null,null,54,"（新）枚方富田林泉佐野線",23,4,"主要地方道",109,3,"新道"]
[null,null,null,null,null,null,null,null,null,null,null,null,null,null,null,null,null,null,null,null,null,null,null,null,null,null,null,null,null,null,null,null,null,null,null,null,null,null,null,null,null,null,55,"伊丹豊中線",24,4,"主要地方道",110,1,"現道"]
[null,null,null,null,null,null,null,null,null,null,null,null,null,null,null,null,null,null,null,null,null,null,null,null,null,null,null,null,null,null,null,null,null,null,null,null,null,null,null,null,null,null,56,"大阪和泉泉南線",25,4,"主要地方道",111,1,"現道"]
[null,null,null,null,null,null,null,null,null,null,null,null,null,null,null,null,null,null,null,null,null,null,null,null,null,null,null,null,null,null,null,null,null,null,null,null,null,null,null,null,null,null,57,"（旧）大阪和泉泉南線",25,4,"主要地方道",111,2,"旧道"]
[null,null,null,null,null,null,null,null,null,null,null,null,null,null,null,null,null,null,null,null,null,null,null,null,null,null,null,null,null,null,null,null,null,null,null,null,null,null,null,null,null,null,58,"（新）大阪和泉泉南線",25,4,"主要地方道",111,3,"新道"]
[null,null,null,null,null,null,null,null,null,null,null,null,null,null,null,null,null,null,null,null,null,null,null,null,null,null,null,null,null,null,null,null,null,null,null,null,null,null,null,null,null,null,62,"堺羽曳野線",26,4,"主要地方道",112,1,"現道"]
[null,null,null,null,null,null,null,null,null,null,null,null,null,null,null,null,null,null,null,null,null,null,null,null,null,null,null,null,null,null,null,null,null,null,null,null,null,null,null,null,null,null,63,"（旧）堺羽曳野線",26,4,"主要地方道",112,2,"旧道"]
[null,null,null,null,null,null,null,null,null,null,null,null,null,null,null,null,null,null,null,null,null,null,null,null,null,null,null,null,null,null,null,null,null,null,null,null,null,null,null,null,null,null,64,"（新）堺羽曳野線",26,4,"主要地方道",112,3,"新道"]
[null,null,null,null,null,null,null,null,null,null,null,null,null,null,null,null,null,null,null,null,null,null,null,null,null,null,null,null,null,null,null,null,null,null,null,null,null,null,null,null,null,null,65,"泉佐野打田線",27,4,"主要地方道",114,1,"現道"]
[null,null,null,null,null,null,null,null,null,null,null,null,null,null,null,null,null,null,null,null,null,null,null,null,null,null,null,null,null,null,null,null,null,null,null,null,null,null,null,null,null,null,69,"（旧）泉佐野打田線",27,4,"主要地方道",114,2,"旧道"]
[null,null,null,null,null,null,null,null,null,null,null,null,null,null,null,null,null,null,null,null,null,null,null,null,null,null,null,null,null,null,null,null,null,null,null,null,null,null,null,null,null,null,70,"（新）泉佐野打田線",27,4,"主要地方道",114,3,"新道"]
[null,null,null,null,null,null,null,null,null,null,null,null,null,null,null,null,null,null,null,null,null,null,null,null,null,null,null,null,null,null,null,null,null,null,null,null,null,null,null,null,null,null,71,"泉佐野岩出線",28,4,"主要地方道",115,1,"現道"]
[null,null,null,null,null,null,null,null,null,null,null,null,null,null,null,null,null,null,null,null,null,null,null,null,null,null,null,null,null,null,null,null,null,null,null,null,null,null,null,null,null,null,72,"（旧）泉佐野岩出線",28,4,"主要地方道",115,2,"旧道"]
[null,null,null,null,null,null,null,null,null,null,null,null,null,null,null,null,null,null,null,null,null,null,null,null,null,null,null,null,null,null,null,null,null,null,null,null,null,null,null,null,null,null,73,"（新）泉佐野岩出線",28,4,"主要地方道",115,3,"新道"]
[null,null,null,null,null,null,null,null,null,null,null,null,null,null,null,null,null,null,null,null,null,null,null,null,null,null,null,null,null,null,null,null,null,null,null,null,null,null,null,null,null,null,74,"大阪国際空港線",29,4,"主要地方道",116,1,"現道"]
[null,null,null,null,null,null,null,null,null,null,null,null,null,null,null,null,null,null,null,null,null,null,null,null,null,null,null,null,null,null,null,null,null,null,null,null,null,null,null,null,null,null,75,"（旧）大阪国際空港線",29,4,"主要地方道",116,2,"旧道"]
[null,null,null,null,null,null,null,null,null,null,null,null,null,null,null,null,null,null,null,null,null,null,null,null,null,null,null,null,null,null,null,null,null,null,null,null,null,null,null,null,null,null,76,"（新）大阪国際空港線",29,4,"主要地方道",116,3,"新道"]
[null,null,null,null,null,null,null,null,null,null,null,null,null,null,null,null,null,null,null,null,null,null,null,null,null,null,null,null,null,null,null,null,null,null,null,null,null,null,null,null,null,null,77,"大阪生駒線",30,4,"主要地方道",118,1,"現道"]
[null,null,null,null,null,null,null,null,null,null,null,null,null,null,null,null,null,null,null,null,null,null,null,null,null,null,null,null,null,null,null,null,null,null,null,null,null,null,null,null,null,null,78,"（新）大阪生駒線",30,4,"主要地方道",118,3,"新道"]
[null,null,null,null,null,null,null,null,null,null,null,null,null,null,null,null,null,null,null,null,null,null,null,null,null,null,null,null,null,null,null,null,null,null,null,null,null,null,null,null,null,null,79,"大阪池田線",31,4,"主要地方道",120,1,"現道"]
[null,null,null,null,null,null,null,null,null,null,null,null,null,null,null,null,null,null,null,null,null,null,null,null,null,null,null,null,null,null,null,null,null,null,null,null,null,null,null,null,null,null,80,"（旧）大阪池田線",31,4,"主要地方道",120,2,"旧道"]
[null,null,null,null,null,null,null,null,null,null,null,null,null,null,null,null,null,null,null,null,null,null,null,null,null,null,null,null,null,null,null,null,null,null,null,null,null,null,null,null,null,null,81,"（新）大阪池田線",31,4,"主要地方道",120,3,"新道"]
[null,null,null,null,null,null,null,null,null,null,null,null,null,null,null,null,null,null,null,null,null,null,null,null,null,null,null,null,null,null,null,null,null,null,null,null,null,null,null,null,null,null,82,"豊中亀岡線",32,4,"主要地方道",121,1,"現道"]
[null,null,null,null,null,null,null,null,null,null,null,null,null,null,null,null,null,null,null,null,null,null,null,null,null,null,null,null,null,null,null,null,null,null,null,null,null,null,null,null,null,null,86,"（旧）豊中亀岡線",32,4,"主要地方道",121,2,"旧道"]
[null,null,null,null,null,null,null,null,null,null,null,null,null,null,null,null,null,null,null,null,null,null,null,null,null,null,null,null,null,null,null,null,null,null,null,null,null,null,null,null,null,null,87,"（新）豊中亀岡線",32,4,"主要地方道",121,3,"新道"]
[null,null,null,null,null,null,null,null,null,null,null,null,null,null,null,null,null,null,null,null,null,null,null,null,null,null,null,null,null,null,null,null,null,null,null,null,null,null,null,null,null,null,88,"大阪中央環状線",33,4,"主要地方道",123,1,"現道"]
[null,null,null,null,null,null,null,null,null,null,null,null,null,null,null,null,null,null,null,null,null,null,null,null,null,null,null,null,null,null,null,null,null,null,null,null,null,null,null,null,null,null,92,"（旧）大阪中央環状線",33,4,"主要地方道",123,2,"旧道"]
[null,null,null,null,null,null,null,null,null,null,null,null,null,null,null,null,null,null,null,null,null,null,null,null,null,null,null,null,null,null,null,null,null,null,null,null,null,null,null,null,null,null,93,"（新）大阪中央環状線",33,4,"主要地方道",123,3,"新道"]
[null,null,null,null,null,null,null,null,null,null,null,null,null,null,null,null,null,null,null,null,null,null,null,null,null,null,null,null,null,null,null,null,null,null,null,null,null,null,null,null,null,null,94,"茨木寝屋川線",34,4,"主要地方道",126,1,"現道"]
[null,null,null,null,null,null,null,null,null,null,null,null,null,null,null,null,null,null,null,null,null,null,null,null,null,null,null,null,null,null,null,null,null,null,null,null,null,null,null,null,null,null,95,"（旧）茨木寝屋川線",34,4,"主要地方道",126,2,"旧道"]
[null,null,null,null,null,null,null,null,null,null,null,null,null,null,null,null,null,null,null,null,null,null,null,null,null,null,null,null,null,null,null,null,null,null,null,null,null,null,null,null,null,null,96,"（新）茨木寝屋川線",34,4,"主要地方道",126,3,"新道"]
[null,null,null,null,null,null,null,null,null,null,null,null,null,null,null,null,null,null,null,null,null,null,null,null,null,null,null,null,null,null,null,null,null,null,null,null,null,null,null,null,null,null,97,"大阪高槻線",35,4,"主要地方道",127,1,"現道"]
[null,null,null,null,null,null,null,null,null,null,null,null,null,null,null,null,null,null,null,null,null,null,null,null,null,null,null,null,null,null,null,null,null,null,null,null,null,null,null,null,null,null,98,"枚方交野寝屋川線",36,4,"主要地方道",128,1,"現道"]
[null,null,null,null,null,null,null,null,null,null,null,null,null,null,null,null,null,null,null,null,null,null,null,null,null,null,null,null,null,null,null,null,null,null,null,null,null,null,null,null,null,null,100,"（旧）枚方交野寝屋川線",36,4,"主要地方道",128,2,"旧道"]
[null,null,null,null,null,null,null,null,null,null,null,null,null,null,null,null,null,null,null,null,null,null,null,null,null,null,null,null,null,null,null,null,null,null,null,null,null,null,null,null,null,null,101,"（新）枚方交野寝屋川線",36,4,"主要地方道",128,3,"新道"]
[null,null,null,null,null,null,null,null,null,null,null,null,null,null,null,null,null,null,null,null,null,null,null,null,null,null,null,null,null,null,null,null,null,null,null,null,null,null,null,null,null,null,102,"大阪高石線",37,4,"主要地方道",129,1,"現道"]
[null,null,null,null,null,null,null,null,null,null,null,null,null,null,null,null,null,null,null,null,null,null,null,null,null,null,null,null,null,null,null,null,null,null,null,null,null,null,null,null,null,null,103,"（旧）大阪高石線",37,4,"主要地方道",129,2,"旧道"]
[null,null,null,null,null,null,null,null,null,null,null,null,null,null,null,null,null,null,null,null,null,null,null,null,null,null,null,null,null,null,null,null,null,null,null,null,null,null,null,null,null,null,104,"（新）大阪高石線",37,4,"主要地方道",129,3,"新道"]
[null,null,null,null,null,null,null,null,null,null,null,null,null,null,null,null,null,null,null,null,null,null,null,null,null,null,null,null,null,null,null,null,null,null,null,null,null,null,null,null,null,null,105,"大阪臨海線",38,4,"主要地方道",130,1,"現道"]
[null,null,null,null,null,null,null,null,null,null,null,null,null,null,null,null,null,null,null,null,null,null,null,null,null,null,null,null,null,null,null,null,null,null,null,null,null,null,null,null,null,null,106,"（旧）大阪臨海線",38,4,"主要地方道",130,2,"旧道"]
[null,null,null,null,null,null,null,null,null,null,null,null,null,null,null,null,null,null,null,null,null,null,null,null,null,null,null,null,null,null,null,null,null,null,null,null,null,null,null,null,null,null,108,"（新）大阪臨海線",38,4,"主要地方道",130,3,"新道"]
[null,null,null,null,null,null,null,null,null,null,null,null,null,null,null,null,null,null,null,null,null,null,null,null,null,null,null,null,null,null,null,null,null,null,null,null,null,null,null,null,null,null,109,"茨木能勢線",39,4,"主要地方道",131,1,"現道"]
[null,null,null,null,null,null,null,null,null,null,null,null,null,null,null,null,null,null,null,null,null,null,null,null,null,null,null,null,null,null,null,null,null,null,null,null,null,null,null,null,null,null,110,"（旧）茨木能勢線",39,4,"主要地方道",131,2,"旧道"]
[null,null,null,null,null,null,null,null,null,null,null,null,null,null,null,null,null,null,null,null,null,null,null,null,null,null,null,null,null,null,null,null,null,null,null,null,null,null,null,null,null,null,111,"（新）茨木能勢線",39,4,"主要地方道",131,3,"新道"]
[null,null,null,null,null,null,null,null,null,null,null,null,null,null,null,null,null,null,null,null,null,null,null,null,null,null,null,null,null,null,null,null,null,null,null,null,null,null,null,null,null,null,112,"京都守口線",40,4,"主要地方道",132,1,"現道"]
[null,null,null,null,null,null,null,null,null,null,null,null,null,null,null,null,null,null,null,null,null,null,null,null,null,null,null,null,null,null,null,null,null,null,null,null,null,null,null,null,null,null,119,"（旧）京都守口線",40,4,"主要地方道",132,2,"旧道"]
[null,null,null,null,null,null,null,null,null,null,null,null,null,null,null,null,null,null,null,null,null,null,null,null,null,null,null,null,null,null,null,null,null,null,null,null,null,null,null,null,null,null,120,"（新）京都守口線",40,4,"主要地方道",132,3,"新道"]
[null,null,null,null,null,null,null,null,null,null,null,null,null,null,null,null,null,null,null,null,null,null,null,null,null,null,null,null,null,null,null,null,null,null,null,null,null,null,null,null,null,null,121,"堺かつらぎ線",41,4,"主要地方道",133,1,"現道"]
[null,null,null,null,null,null,null,null,null,null,null,null,null,null,null,null,null,null,null,null,null,null,null,null,null,null,null,null,null,null,null,null,null,null,null,null,null,null,null,null,null,null,122,"泉大津美原線",42,4,"主要地方道",134,1,"現道"]
[null,null,null,null,null,null,null,null,null,null,null,null,null,null,null,null,null,null,null,null,null,null,null,null,null,null,null,null,null,null,null,null,null,null,null,null,null,null,null,null,null,null,123,"（旧）泉大津美原線",42,4,"主要地方道",134,2,"旧道"]
[null,null,null,null,null,null,null,null,null,null,null,null,null,null,null,null,null,null,null,null,null,null,null,null,null,null,null,null,null,null,null,null,null,null,null,null,null,null,null,null,null,null,126,"（新）泉大津美原線",42,4,"主要地方道",134,3,"新道"]
[null,null,null,null,null,null,null,null,null,null,null,null,null,null,null,null,null,null,null,null,null,null,null,null,null,null,null,null,null,null,null,null,null,null,null,null,null,null,null,null,null,null,127,"岬加太港線",43,4,"主要地方道",135,1,"現道"]
[null,null,null,null,null,null,null,null,null,null,null,null,null,null,null,null,null,null,null,null,null,null,null,null,null,null,null,null,null,null,null,null,null,null,null,null,null,null,null,null,null,null,128,"（旧）岬加太港線",43,4,"主要地方道",135,2,"旧道"]
[null,null,null,null,null,null,null,null,null,null,null,null,null,null,null,null,null,null,null,null,null,null,null,null,null,null,null,null,null,null,null,null,null,null,null,null,null,null,null,null,null,null,129,"（新）岬加太港線",43,4,"主要地方道",135,3,"新道"]
[null,null,null,null,null,null,null,null,null,null,null,null,null,null,null,null,null,null,null,null,null,null,null,null,null,null,null,null,null,null,null,null,null,null,null,null,null,null,null,null,null,null,130,"柏原駒ケ谷千早赤阪線",44,4,"主要地方道",145,1,"現道"]
[null,null,null,null,null,null,null,null,null,null,null,null,null,null,null,null,null,null,null,null,null,null,null,null,null,null,null,null,null,null,null,null,null,null,null,null,null,null,null,null,null,null,131,"園部能勢線",45,4,"主要地方道",146,1,"現道"]
[null,null,null,null,null,null,null,null,null,null,null,null,null,null,null,null,null,null,null,null,null,null,null,null,null,null,null,null,null,null,null,null,null,null,null,null,null,null,null,null,null,null,132,"箕面池田線",46,4,"主要地方道",153,1,"現道"]
[null,null,null,null,null,null,null,null,null,null,null,null,null,null,null,null,null,null,null,null,null,null,null,null,null,null,null,null,null,null,null,null,null,null,null,null,null,null,null,null,null,null,133,"枚方大和郡山線",47,4,"主要地方道",154,1,"現道"]
[null,null,null,null,null,null,null,null,null,null,null,null,null,null,null,null,null,null,null,null,null,null,null,null,null,null,null,null,null,null,null,null,null,null,null,null,null,null,null,null,null,null,134,"（新）枚方大和郡山線",47,4,"主要地方道",154,3,"新道"]
[null,null,null,null,null,null,null,null,null,null,null,null,null,null,null,null,null,null,null,null,null,null,null,null,null,null,null,null,null,null,null,null,null,null,null,null,null,null,null,null,null,null,135,"大阪狭山線",48,4,"主要地方道",155,1,"現道"]
[null,null,null,null,null,null,null,null,null,null,null,null,null,null,null,null,null,null,null,null,null,null,null,null,null,null,null,null,null,null,null,null,null,null,null,null,null,null,null,null,null,null,136,"（旧）大阪狭山線",48,4,"主要地方道",155,2,"旧道"]
[null,null,null,null,null,null,null,null,null,null,null,null,null,null,null,null,null,null,null,null,null,null,null,null,null,null,null,null,null,null,null,null,null,null,null,null,null,null,null,null,null,null,137,"（新）大阪狭山線",48,4,"主要地方道",155,3,"新道"]
[null,null,null,null,null,null,null,null,null,null,null,null,null,null,null,null,null,null,null,null,null,null,null,null,null,null,null,null,null,null,null,null,null,null,null,null,null,null,null,null,null,null,138,"美原太子線",49,4,"主要地方道",156,1,"現道"]
[null,null,null,null,null,null,null,null,null,null,null,null,null,null,null,null,null,null,null,null,null,null,null,null,null,null,null,null,null,null,null,null,null,null,null,null,null,null,null,null,null,null,139,"（旧）美原太子線",49,4,"主要地方道",156,2,"旧道"]
[null,null,null,null,null,null,null,null,null,null,null,null,null,null,null,null,null,null,null,null,null,null,null,null,null,null,null,null,null,null,null,null,null,null,null,null,null,null,null,null,null,null,140,"（新）美原太子線",49,4,"主要地方道",156,3,"新道"]
[null,null,null,null,null,null,null,null,null,null,null,null,null,null,null,null,null,null,null,null,null,null,null,null,null,null,null,null,null,null,null,null,null,null,null,null,null,null,null,null,null,null,141,"岸和田牛滝山貝塚線",50,4,"主要地方道",158,1,"現道"]
[null,null,null,null,null,null,null,null,null,null,null,null,null,null,null,null,null,null,null,null,null,null,null,null,null,null,null,null,null,null,null,null,null,null,null,null,null,null,null,null,null,null,145,"（旧）岸和田牛滝山貝塚線",50,4,"主要地方道",158,2,"旧道"]
[null,null,null,null,null,null,null,null,null,null,null,null,null,null,null,null,null,null,null,null,null,null,null,null,null,null,null,null,null,null,null,null,null,null,null,null,null,null,null,null,null,null,146,"（新）岸和田牛滝山貝塚線",50,4,"主要地方道",158,3,"新道"]
[null,null,null,null,null,null,null,null,null,null,null,null,null,null,null,null,null,null,null,null,null,null,null,null,null,null,null,null,null,null,null,null,null,null,null,null,null,null,null,null,null,null,147,"八尾茨木線",51,4,"主要地方道",159,1,"現道"]
[null,null,null,null,null,null,null,null,null,null,null,null,null,null,null,null,null,null,null,null,null,null,null,null,null,null,null,null,null,null,null,null,null,null,null,null,null,null,null,null,null,null,153,"（旧）八尾茨木線",51,4,"主要地方道",159,2,"旧道"]
[null,null,null,null,null,null,null,null,null,null,null,null,null,null,null,null,null,null,null,null,null,null,null,null,null,null,null,null,null,null,null,null,null,null,null,null,null,null,null,null,null,null,154,"（新）八尾茨木線",51,4,"主要地方道",159,3,"新道"]
[null,null,null,null,null,null,null,null,null,null,null,null,null,null,null,null,null,null,null,null,null,null,null,null,null,null,null,null,null,null,null,null,null,null,null,null,null,null,null,null,null,null,155,"大阪東大阪線",52,4,"主要地方道",160,1,"現道"]
[null,null,null,null,null,null,null,null,null,null,null,null,null,null,null,null,null,null,null,null,null,null,null,null,null,null,null,null,null,null,null,null,null,null,null,null,null,null,null,null,null,null,156,"堺狭山線",53,4,"主要地方道",161,1,"現道"]
[null,null,null,null,null,null,null,null,null,null,null,null,null,null,null,null,null,null,null,null,null,null,null,null,null,null,null,null,null,null,null,null,null,null,null,null,null,null,null,null,null,null,157,"枚方高槻線",54,4,"主要地方道",162,1,"現道"]
[null,null,null,null,null,null,null,null,null,null,null,null,null,null,null,null,null,null,null,null,null,null,null,null,null,null,null,null,null,null,null,null,null,null,null,null,null,null,null,null,null,null,158,"（新）枚方高槻線",54,4,"主要地方道",162,3,"新道"]
[null,null,null,null,null,null,null,null,null,null,null,null,null,null,null,null,null,null,null,null,null,null,null,null,null,null,null,null,null,null,null,null,null,null,null,null,null,null,null,null,null,null,159,"茨木摂津線",55,4,"主要地方道",178,1,"現道"]
[null,null,null,null,null,null,null,null,null,null,null,null,null,null,null,null,null,null,null,null,null,null,null,null,null,null,null,null,null,null,null,null,null,null,null,null,null,null,null,null,null,null,165,"伏見柳谷高槻線",56,4,"主要地方道",179,1,"現道"]
[null,null,null,null,null,null,null,null,null,null,null,null,null,null,null,null,null,null,null,null,null,null,null,null,null,null,null,null,null,null,null,null,null,null,null,null,null,null,null,null,null,null,166,"（旧）伏見柳谷高槻線",56,4,"主要地方道",179,2,"旧道"]
[null,null,null,null,null,null,null,null,null,null,null,null,null,null,null,null,null,null,null,null,null,null,null,null,null,null,null,null,null,null,null,null,null,null,null,null,null,null,null,null,null,null,167,"（新）伏見柳谷高槻線",56,4,"主要地方道",179,3,"新道"]
[null,null,null,null,null,null,null,null,null,null,null,null,null,null,null,null,null,null,null,null,null,null,null,null,null,null,null,null,null,null,null,null,null,null,null,null,null,null,null,null,null,null,168,"西京高槻線",57,4,"主要地方道",180,1,"現道"]
[null,null,null,null,null,null,null,null,null,null,null,null,null,null,null,null,null,null,null,null,null,null,null,null,null,null,null,null,null,null,null,null,null,null,null,null,null,null,null,null,null,null,169,"枚方山城線",58,4,"主要地方道",181,1,"現道"]
[null,null,null,null,null,null,null,null,null,null,null,null,null,null,null,null,null,null,null,null,null,null,null,null,null,null,null,null,null,null,null,null,null,null,null,null,null,null,null,null,null,null,170,"大阪港八尾線",59,4,"主要地方道",182,1,"現道"]
[null,null,null,null,null,null,null,null,null,null,null,null,null,null,null,null,null,null,null,null,null,null,null,null,null,null,null,null,null,null,null,null,null,null,null,null,null,null,null,null,null,null,171,"富田林泉大津線",60,4,"主要地方道",183,1,"現道"]
[null,null,null,null,null,null,null,null,null,null,null,null,null,null,null,null,null,null,null,null,null,null,null,null,null,null,null,null,null,null,null,null,null,null,null,null,null,null,null,null,null,null,172,"（旧）富田林泉大津線",60,4,"主要地方道",183,2,"旧道"]
[null,null,null,null,null,null,null,null,null,null,null,null,null,null,null,null,null,null,null,null,null,null,null,null,null,null,null,null,null,null,null,null,null,null,null,null,null,null,null,null,null,null,175,"（新）富田林泉大津線",60,4,"主要地方道",183,3,"新道"]
[null,null,null,null,null,null,null,null,null,null,null,null,null,null,null,null,null,null,null,null,null,null,null,null,null,null,null,null,null,null,null,null,null,null,null,null,null,null,null,null,null,null,176,"岸和田港塔原線",61,4,"主要地方道",184,1,"現道"]
[null,null,null,null,null,null,null,null,null,null,null,null,null,null,null,null,null,null,null,null,null,null,null,null,null,null,null,null,null,null,null,null,null,null,null,null,null,null,null,null,null,null,177,"和歌山貝塚線",62,4,"主要地方道",185,1,"現道"]
[null,null,null,null,null,null,null,null,null,null,null,null,null,null,null,null,null,null,null,null,null,null,null,null,null,null,null,null,null,null,null,null,null,null,null,null,null,null,null,null,null,null,178,"能勢猪名川線",63,3,"一般府道",201,1,"現道"]
[null,null,null,null,null,null,null,null,null,null,null,null,null,null,null,null,null,null,null,null,null,null,null,null,null,null,null,null,null,null,null,null,null,null,null,null,null,null,null,null,null,null,179,"亀岡能勢線",64,3,"一般府道",202,1,"現道"]
[null,null,null,null,null,null,null,null,null,null,null,null,null,null,null,null,null,null,null,null,null,null,null,null,null,null,null,null,null,null,null,null,null,null,null,null,null,null,null,null,null,null,180,"伊丹池田線",65,3,"一般府道",204,1,"現道"]
[null,null,null,null,null,null,null,null,null,null,null,null,null,null,null,null,null,null,null,null,null,null,null,null,null,null,null,null,null,null,null,null,null,null,null,null,null,null,null,null,null,null,183,"（旧）伊丹池田線",65,3,"一般府道",204,2,"旧道"]
[null,null,null,null,null,null,null,null,null,null,null,null,null,null,null,null,null,null,null,null,null,null,null,null,null,null,null,null,null,null,null,null,null,null,null,null,null,null,null,null,null,null,184,"（新）伊丹池田線",65,3,"一般府道",204,3,"新道"]
[null,null,null,null,null,null,null,null,null,null,null,null,null,null,null,null,null,null,null,null,null,null,null,null,null,null,null,null,null,null,null,null,null,null,null,null,null,null,null,null,null,null,185,"西宮豊中線",66,3,"一般府道",205,1,"現道"]
[null,null,null,null,null,null,null,null,null,null,null,null,null,null,null,null,null,null,null,null,null,null,null,null,null,null,null,null,null,null,null,null,null,null,null,null,null,null,null,null,null,null,186,"豊中摂津線",67,3,"一般府道",206,1,"現道"]
[null,null,null,null,null,null,null,null,null,null,null,null,null,null,null,null,null,null,null,null,null,null,null,null,null,null,null,null,null,null,null,null,null,null,null,null,null,null,null,null,null,null,187,"箕面摂津線",68,3,"一般府道",207,1,"現道"]
[null,null,null,null,null,null,null,null,null,null,null,null,null,null,null,null,null,null,null,null,null,null,null,null,null,null,null,null,null,null,null,null,null,null,null,null,null,null,null,null,null,null,188,"吹田箕面線",69,3,"一般府道",208,1,"現道"]
[null,null,null,null,null,null,null,null,null,null,null,null,null,null,null,null,null,null,null,null,null,null,null,null,null,null,null,null,null,null,null,null,null,null,null,null,null,null,null,null,null,null,189,"枚方茨木線",70,3,"一般府道",209,1,"現道"]
[null,null,null,null,null,null,null,null,null,null,null,null,null,null,null,null,null,null,null,null,null,null,null,null,null,null,null,null,null,null,null,null,null,null,null,null,null,null,null,null,null,null,190,"交野久御山線",71,3,"一般府道",211,1,"現道"]
[null,null,null,null,null,null,null,null,null,null,null,null,null,null,null,null,null,null,null,null,null,null,null,null,null,null,null,null,null,null,null,null,null,null,null,null,null,null,null,null,null,null,191,"（旧）交野久御山線",71,3,"一般府道",211,2,"旧道"]
[null,null,null,null,null,null,null,null,null,null,null,null,null,null,null,null,null,null,null,null,null,null,null,null,null,null,null,null,null,null,null,null,null,null,null,null,null,null,null,null,null,null,192,"（新）交野久御山線",71,3,"一般府道",211,3,"新道"]
[null,null,null,null,null,null,null,null,null,null,null,null,null,null,null,null,null,null,null,null,null,null,null,null,null,null,null,null,null,null,null,null,null,null,null,null,null,null,null,null,null,null,193,"大東四条畷線",72,3,"一般府道",213,1,"現道"]
[null,null,null,null,null,null,null,null,null,null,null,null,null,null,null,null,null,null,null,null,null,null,null,null,null,null,null,null,null,null,null,null,null,null,null,null,null,null,null,null,null,null,195,"守口門真線",73,3,"一般府道",214,1,"現道"]
[null,null,null,null,null,null,null,null,null,null,null,null,null,null,null,null,null,null,null,null,null,null,null,null,null,null,null,null,null,null,null,null,null,null,null,null,null,null,null,null,null,null,196,"大阪八尾線",74,3,"一般府道",215,1,"現道"]
[null,null,null,null,null,null,null,null,null,null,null,null,null,null,null,null,null,null,null,null,null,null,null,null,null,null,null,null,null,null,null,null,null,null,null,null,null,null,null,null,null,null,197,"大阪羽曳野線",75,3,"一般府道",217,1,"現道"]
[null,null,null,null,null,null,null,null,null,null,null,null,null,null,null,null,null,null,null,null,null,null,null,null,null,null,null,null,null,null,null,null,null,null,null,null,null,null,null,null,null,null,198,"八尾道明寺線",76,3,"一般府道",218,1,"現道"]
[null,null,null,null,null,null,null,null,null,null,null,null,null,null,null,null,null,null,null,null,null,null,null,null,null,null,null,null,null,null,null,null,null,null,null,null,null,null,null,null,null,null,199,"住吉八尾線",77,3,"一般府道",220,1,"現道"]
[null,null,null,null,null,null,null,null,null,null,null,null,null,null,null,null,null,null,null,null,null,null,null,null,null,null,null,null,null,null,null,null,null,null,null,null,null,null,null,null,null,null,200,"香芝太子線",78,3,"一般府道",221,1,"現道"]
[null,null,null,null,null,null,null,null,null,null,null,null,null,null,null,null,null,null,null,null,null,null,null,null,null,null,null,null,null,null,null,null,null,null,null,null,null,null,null,null,null,null,201,"河内長野美原線",79,3,"一般府道",223,1,"現道"]
[null,null,null,null,null,null,null,null,null,null,null,null,null,null,null,null,null,null,null,null,null,null,null,null,null,null,null,null,null,null,null,null,null,null,null,null,null,null,null,null,null,null,202,"富田林狭山線",80,3,"一般府道",224,1,"現道"]
[null,null,null,null,null,null,null,null,null,null,null,null,null,null,null,null,null,null,null,null,null,null,null,null,null,null,null,null,null,null,null,null,null,null,null,null,null,null,null,null,null,null,203,"河内長野かつらぎ線",81,3,"一般府道",225,1,"現道"]
[null,null,null,null,null,null,null,null,null,null,null,null,null,null,null,null,null,null,null,null,null,null,null,null,null,null,null,null,null,null,null,null,null,null,null,null,null,null,null,null,null,null,204,"河内長野千早城跡線",82,3,"一般府道",226,1,"現道"]
[null,null,null,null,null,null,null,null,null,null,null,null,null,null,null,null,null,null,null,null,null,null,null,null,null,null,null,null,null,null,null,null,null,null,null,null,null,null,null,null,null,null,205,"（旧）河内長野千早城跡線",82,3,"一般府道",226,2,"旧道"]
[null,null,null,null,null,null,null,null,null,null,null,null,null,null,null,null,null,null,null,null,null,null,null,null,null,null,null,null,null,null,null,null,null,null,null,null,null,null,null,null,null,null,206,"（新）河内長野千早城跡線",82,3,"一般府道",226,3,"新道"]
[null,null,null,null,null,null,null,null,null,null,null,null,null,null,null,null,null,null,null,null,null,null,null,null,null,null,null,null,null,null,null,null,null,null,null,null,null,null,null,null,null,null,207,"柚原向日線",83,3,"一般府道",230,1,"現道"]
[null,null,null,null,null,null,null,null,null,null,null,null,null,null,null,null,null,null,null,null,null,null,null,null,null,null,null,null,null,null,null,null,null,null,null,null,null,null,null,null,null,null,208,"木屋交野線",84,3,"一般府道",234,1,"現道"]
[null,null,null,null,null,null,null,null,null,null,null,null,null,null,null,null,null,null,null,null,null,null,null,null,null,null,null,null,null,null,null,null,null,null,null,null,null,null,null,null,null,null,209,"深野南寺方大阪線",85,3,"一般府道",236,1,"現道"]
[null,null,null,null,null,null,null,null,null,null,null,null,null,null,null,null,null,null,null,null,null,null,null,null,null,null,null,null,null,null,null,null,null,null,null,null,null,null,null,null,null,null,210,"石切大阪線",86,3,"一般府道",237,1,"現道"]
[null,null,null,null,null,null,null,null,null,null,null,null,null,null,null,null,null,null,null,null,null,null,null,null,null,null,null,null,null,null,null,null,null,null,null,null,null,null,null,null,null,null,211,"（新）石切大阪線",86,3,"一般府道",237,3,"新道"]
[null,null,null,null,null,null,null,null,null,null,null,null,null,null,null,null,null,null,null,null,null,null,null,null,null,null,null,null,null,null,null,null,null,null,null,null,null,null,null,null,null,null,212,"平尾鳳停車場線",87,3,"一般府道",241,1,"現道"]
[null,null,null,null,null,null,null,null,null,null,null,null,null,null,null,null,null,null,null,null,null,null,null,null,null,null,null,null,null,null,null,null,null,null,null,null,null,null,null,null,null,null,213,"鳥取吉見泉佐野線",88,3,"一般府道",243,1,"現道"]
[null,null,null,null,null,null,null,null,null,null,null,null,null,null,null,null,null,null,null,null,null,null,null,null,null,null,null,null,null,null,null,null,null,null,null,null,null,null,null,null,null,null,214,"堺港線",89,3,"一般府道",245,1,"現道"]
[null,null,null,null,null,null,null,null,null,null,null,null,null,null,null,null,null,null,null,null,null,null,null,null,null,null,null,null,null,null,null,null,null,null,null,null,null,null,null,null,null,null,215,"大津港線",90,3,"一般府道",246,1,"現道"]
[null,null,null,null,null,null,null,null,null,null,null,null,null,null,null,null,null,null,null,null,null,null,null,null,null,null,null,null,null,null,null,null,null,null,null,null,null,null,null,null,null,null,216,"絹延橋停車場線",91,3,"一般府道",248,1,"現道"]
[null,null,null,null,null,null,null,null,null,null,null,null,null,null,null,null,null,null,null,null,null,null,null,null,null,null,null,null,null,null,null,null,null,null,null,null,null,null,null,null,null,null,217,"岡町停車場線",92,3,"一般府道",249,1,"現道"]
[null,null,null,null,null,null,null,null,null,null,null,null,null,null,null,null,null,null,null,null,null,null,null,null,null,null,null,null,null,null,null,null,null,null,null,null,null,null,null,null,null,null,218,"曽根停車場線",93,3,"一般府道",250,1,"現道"]
[null,null,null,null,null,null,null,null,null,null,null,null,null,null,null,null,null,null,null,null,null,null,null,null,null,null,null,null,null,null,null,null,null,null,null,null,null,null,null,null,null,null,219,"桜井停車場線",94,3,"一般府道",252,1,"現道"]
[null,null,null,null,null,null,null,null,null,null,null,null,null,null,null,null,null,null,null,null,null,null,null,null,null,null,null,null,null,null,null,null,null,null,null,null,null,null,null,null,null,null,220,"高槻停車場線",95,3,"一般府道",253,1,"現道"]
[null,null,null,null,null,null,null,null,null,null,null,null,null,null,null,null,null,null,null,null,null,null,null,null,null,null,null,null,null,null,null,null,null,null,null,null,null,null,null,null,null,null,221,"摂津富田停車場線",96,3,"一般府道",254,1,"現道"]
[null,null,null,null,null,null,null,null,null,null,null,null,null,null,null,null,null,null,null,null,null,null,null,null,null,null,null,null,null,null,null,null,null,null,null,null,null,null,null,null,null,null,222,"茨木停車場線",97,3,"一般府道",255,1,"現道"]
[null,null,null,null,null,null,null,null,null,null,null,null,null,null,null,null,null,null,null,null,null,null,null,null,null,null,null,null,null,null,null,null,null,null,null,null,null,null,null,null,null,null,223,"吹田停車場線",98,3,"一般府道",256,1,"現道"]
[null,null,null,null,null,null,null,null,null,null,null,null,null,null,null,null,null,null,null,null,null,null,null,null,null,null,null,null,null,null,null,null,null,null,null,null,null,null,null,null,null,null,224,"高槻市停車場線",99,3,"一般府道",257,1,"現道"]
[null,null,null,null,null,null,null,null,null,null,null,null,null,null,null,null,null,null,null,null,null,null,null,null,null,null,null,null,null,null,null,null,null,null,null,null,null,null,null,null,null,null,225,"総持寺停車場線",100,3,"一般府道",258,1,"現道"]
[null,null,null,null,null,null,null,null,null,null,null,null,null,null,null,null,null,null,null,null,null,null,null,null,null,null,null,null,null,null,null,null,null,null,null,null,null,null,null,null,null,null,226,"正雀停車場線",101,3,"一般府道",259,1,"現道"]
[null,null,null,null,null,null,null,null,null,null,null,null,null,null,null,null,null,null,null,null,null,null,null,null,null,null,null,null,null,null,null,null,null,null,null,null,null,null,null,null,null,null,227,"相川停車場線",102,3,"一般府道",260,1,"現道"]
[null,null,null,null,null,null,null,null,null,null,null,null,null,null,null,null,null,null,null,null,null,null,null,null,null,null,null,null,null,null,null,null,null,null,null,null,null,null,null,null,null,null,228,"鴻池新田停車場線",103,3,"一般府道",261,3,"新道"]
[null,null,null,null,null,null,null,null,null,null,null,null,null,null,null,null,null,null,null,null,null,null,null,null,null,null,null,null,null,null,null,null,null,null,null,null,null,null,null,null,null,null,229,"鴻池新田停車場鴻池線",104,3,"一般府道",262,3,"新道"]
[null,null,null,null,null,null,null,null,null,null,null,null,null,null,null,null,null,null,null,null,null,null,null,null,null,null,null,null,null,null,null,null,null,null,null,null,null,null,null,null,null,null,230,"住道停車場線",105,3,"一般府道",263,1,"現道"]
[null,null,null,null,null,null,null,null,null,null,null,null,null,null,null,null,null,null,null,null,null,null,null,null,null,null,null,null,null,null,null,null,null,null,null,null,null,null,null,null,null,null,231,"野崎停車場線",106,3,"一般府道",264,1,"現道"]
[null,null,null,null,null,null,null,null,null,null,null,null,null,null,null,null,null,null,null,null,null,null,null,null,null,null,null,null,null,null,null,null,null,null,null,null,null,null,null,null,null,null,232,"四条畷停車場線",107,3,"一般府道",265,1,"現道"]
[null,null,null,null,null,null,null,null,null,null,null,null,null,null,null,null,null,null,null,null,null,null,null,null,null,null,null,null,null,null,null,null,null,null,null,null,null,null,null,null,null,null,233,"星田停車場線",108,3,"一般府道",266,1,"現道"]
[null,null,null,null,null,null,null,null,null,null,null,null,null,null,null,null,null,null,null,null,null,null,null,null,null,null,null,null,null,null,null,null,null,null,null,null,null,null,null,null,null,null,234,"布施停車場線",109,3,"一般府道",267,1,"現道"]
[null,null,null,null,null,null,null,null,null,null,null,null,null,null,null,null,null,null,null,null,null,null,null,null,null,null,null,null,null,null,null,null,null,null,null,null,null,null,null,null,null,null,235,"河内小阪停車場線",110,3,"一般府道",268,1,"現道"]
[null,null,null,null,null,null,null,null,null,null,null,null,null,null,null,null,null,null,null,null,null,null,null,null,null,null,null,null,null,null,null,null,null,null,null,null,null,null,null,null,null,null,236,"枚岡停車場線",111,3,"一般府道",269,1,"現道"]
[null,null,null,null,null,null,null,null,null,null,null,null,null,null,null,null,null,null,null,null,null,null,null,null,null,null,null,null,null,null,null,null,null,null,null,null,null,null,null,null,null,null,237,"近鉄八尾停車場線",112,3,"一般府道",270,1,"現道"]
[null,null,null,null,null,null,null,null,null,null,null,null,null,null,null,null,null,null,null,null,null,null,null,null,null,null,null,null,null,null,null,null,null,null,null,null,null,null,null,null,null,null,238,"東高安停車場線",113,3,"一般府道",271,1,"現道"]
[null,null,null,null,null,null,null,null,null,null,null,null,null,null,null,null,null,null,null,null,null,null,null,null,null,null,null,null,null,null,null,null,null,null,null,null,null,null,null,null,null,null,239,"八尾停車場線",114,3,"一般府道",272,1,"現道"]
[null,null,null,null,null,null,null,null,null,null,null,null,null,null,null,null,null,null,null,null,null,null,null,null,null,null,null,null,null,null,null,null,null,null,null,null,null,null,null,null,null,null,240,"柏原停車場線",115,3,"一般府道",273,1,"現道"]
[null,null,null,null,null,null,null,null,null,null,null,null,null,null,null,null,null,null,null,null,null,null,null,null,null,null,null,null,null,null,null,null,null,null,null,null,null,null,null,null,null,null,241,"柏原停車場大県線",116,3,"一般府道",274,1,"現道"]
[null,null,null,null,null,null,null,null,null,null,null,null,null,null,null,null,null,null,null,null,null,null,null,null,null,null,null,null,null,null,null,null,null,null,null,null,null,null,null,null,null,null,242,"道明寺停車場線",117,3,"一般府道",275,1,"現道"]
[null,null,null,null,null,null,null,null,null,null,null,null,null,null,null,null,null,null,null,null,null,null,null,null,null,null,null,null,null,null,null,null,null,null,null,null,null,null,null,null,null,null,243,"東岸和田停車場線",118,3,"一般府道",280,1,"現道"]
[null,null,null,null,null,null,null,null,null,null,null,null,null,null,null,null,null,null,null,null,null,null,null,null,null,null,null,null,null,null,null,null,null,null,null,null,null,null,null,null,null,null,244,"東貝塚停車場線",119,3,"一般府道",281,1,"現道"]
[null,null,null,null,null,null,null,null,null,null,null,null,null,null,null,null,null,null,null,null,null,null,null,null,null,null,null,null,null,null,null,null,null,null,null,null,null,null,null,null,null,null,245,"和泉橋本停車場線",120,3,"一般府道",282,1,"現道"]
[null,null,null,null,null,null,null,null,null,null,null,null,null,null,null,null,null,null,null,null,null,null,null,null,null,null,null,null,null,null,null,null,null,null,null,null,null,null,null,null,null,null,246,"熊取停車場線",121,3,"一般府道",283,1,"現道"]
[null,null,null,null,null,null,null,null,null,null,null,null,null,null,null,null,null,null,null,null,null,null,null,null,null,null,null,null,null,null,null,null,null,null,null,null,null,null,null,null,null,null,247,"和泉砂川停車場線",122,3,"一般府道",284,1,"現道"]
[null,null,null,null,null,null,null,null,null,null,null,null,null,null,null,null,null,null,null,null,null,null,null,null,null,null,null,null,null,null,null,null,null,null,null,null,null,null,null,null,null,null,248,"石津川停車場線",123,3,"一般府道",287,1,"現道"]
[null,null,null,null,null,null,null,null,null,null,null,null,null,null,null,null,null,null,null,null,null,null,null,null,null,null,null,null,null,null,null,null,null,null,null,null,null,null,null,null,null,null,249,"浜寺公園停車場線",124,3,"一般府道",288,1,"現道"]
[null,null,null,null,null,null,null,null,null,null,null,null,null,null,null,null,null,null,null,null,null,null,null,null,null,null,null,null,null,null,null,null,null,null,null,null,null,null,null,null,null,null,250,"羽衣停車場線",125,3,"一般府道",289,1,"現道"]
[null,null,null,null,null,null,null,null,null,null,null,null,null,null,null,null,null,null,null,null,null,null,null,null,null,null,null,null,null,null,null,null,null,null,null,null,null,null,null,null,null,null,251,"高石停車場線",126,3,"一般府道",290,1,"現道"]
[null,null,null,null,null,null,null,null,null,null,null,null,null,null,null,null,null,null,null,null,null,null,null,null,null,null,null,null,null,null,null,null,null,null,null,null,null,null,null,null,null,null,252,"和泉大宮停車場線",127,3,"一般府道",292,1,"現道"]
[null,null,null,null,null,null,null,null,null,null,null,null,null,null,null,null,null,null,null,null,null,null,null,null,null,null,null,null,null,null,null,null,null,null,null,null,null,null,null,null,null,null,253,"貝塚停車場線",128,3,"一般府道",294,1,"現道"]
[null,null,null,null,null,null,null,null,null,null,null,null,null,null,null,null,null,null,null,null,null,null,null,null,null,null,null,null,null,null,null,null,null,null,null,null,null,null,null,null,null,null,254,"泉佐野停車場線",129,3,"一般府道",297,1,"現道"]
[null,null,null,null,null,null,null,null,null,null,null,null,null,null,null,null,null,null,null,null,null,null,null,null,null,null,null,null,null,null,null,null,null,null,null,null,null,null,null,null,null,null,255,"岡田浦停車場線",130,3,"一般府道",298,1,"現道"]
[null,null,null,null,null,null,null,null,null,null,null,null,null,null,null,null,null,null,null,null,null,null,null,null,null,null,null,null,null,null,null,null,null,null,null,null,null,null,null,null,null,null,256,"樽井停車場樽井線",131,3,"一般府道",299,1,"現道"]
[null,null,null,null,null,null,null,null,null,null,null,null,null,null,null,null,null,null,null,null,null,null,null,null,null,null,null,null,null,null,null,null,null,null,null,null,null,null,null,null,null,null,257,"尾崎停車場線",132,3,"一般府道",300,1,"現道"]
[null,null,null,null,null,null,null,null,null,null,null,null,null,null,null,null,null,null,null,null,null,null,null,null,null,null,null,null,null,null,null,null,null,null,null,null,null,null,null,null,null,null,258,"淡輪停車場線",133,3,"一般府道",301,1,"現道"]
[null,null,null,null,null,null,null,null,null,null,null,null,null,null,null,null,null,null,null,null,null,null,null,null,null,null,null,null,null,null,null,null,null,null,null,null,null,null,null,null,null,null,259,"桜井駅跡線",134,3,"一般府道",303,1,"現道"]
[null,null,null,null,null,null,null,null,null,null,null,null,null,null,null,null,null,null,null,null,null,null,null,null,null,null,null,null,null,null,null,null,null,null,null,null,null,null,null,null,null,null,260,"天王亀岡線",135,3,"一般府道",304,1,"現道"]
[null,null,null,null,null,null,null,null,null,null,null,null,null,null,null,null,null,null,null,null,null,null,null,null,null,null,null,null,null,null,null,null,null,null,null,null,null,null,null,null,null,null,261,"島能勢線",136,3,"一般府道",305,1,"現道"]
[null,null,null,null,null,null,null,null,null,null,null,null,null,null,null,null,null,null,null,null,null,null,null,null,null,null,null,null,null,null,null,null,null,null,null,null,null,null,null,null,null,null,262,"宿野下田線",137,3,"一般府道",307,1,"現道"]
[null,null,null,null,null,null,null,null,null,null,null,null,null,null,null,null,null,null,null,null,null,null,null,null,null,null,null,null,null,null,null,null,null,null,null,null,null,null,null,null,null,null,264,"野間出野一庫線",138,3,"一般府道",308,1,"現道"]
[null,null,null,null,null,null,null,null,null,null,null,null,null,null,null,null,null,null,null,null,null,null,null,null,null,null,null,null,null,null,null,null,null,null,null,null,null,null,null,null,null,null,265,"吉野下田尻線",139,3,"一般府道",309,1,"現道"]
[null,null,null,null,null,null,null,null,null,null,null,null,null,null,null,null,null,null,null,null,null,null,null,null,null,null,null,null,null,null,null,null,null,null,null,null,null,null,null,null,null,null,266,"国崎野間口線",140,3,"一般府道",310,1,"現道"]
[null,null,null,null,null,null,null,null,null,null,null,null,null,null,null,null,null,null,null,null,null,null,null,null,null,null,null,null,null,null,null,null,null,null,null,null,null,null,null,null,null,null,268,"庄本牛立線",141,3,"一般府道",311,1,"現道"]
[null,null,null,null,null,null,null,null,null,null,null,null,null,null,null,null,null,null,null,null,null,null,null,null,null,null,null,null,null,null,null,null,null,null,null,null,null,null,null,null,null,null,269,"余野車作線",142,3,"一般府道",312,1,"現道"]
[null,null,null,null,null,null,null,null,null,null,null,null,null,null,null,null,null,null,null,null,null,null,null,null,null,null,null,null,null,null,null,null,null,null,null,null,null,null,null,null,null,null,270,"熊野大阪線",143,3,"一般府道",313,1,"現道"]
[null,null,null,null,null,null,null,null,null,null,null,null,null,null,null,null,null,null,null,null,null,null,null,null,null,null,null,null,null,null,null,null,null,null,null,null,null,null,null,null,null,null,271,"忍頂寺福井線",144,3,"一般府道",314,1,"現道"]
[null,null,null,null,null,null,null,null,null,null,null,null,null,null,null,null,null,null,null,null,null,null,null,null,null,null,null,null,null,null,null,null,null,null,null,null,null,null,null,null,null,null,272,"萩谷西五百住線",145,3,"一般府道",315,1,"現道"]
[null,null,null,null,null,null,null,null,null,null,null,null,null,null,null,null,null,null,null,null,null,null,null,null,null,null,null,null,null,null,null,null,null,null,null,null,null,null,null,null,null,null,273,"柳谷島本線",146,3,"一般府道",316,1,"現道"]
[null,null,null,null,null,null,null,null,null,null,null,null,null,null,null,null,null,null,null,null,null,null,null,null,null,null,null,null,null,null,null,null,null,null,null,null,null,null,null,null,null,null,274,"正雀一津屋線",147,3,"一般府道",317,1,"現道"]
[null,null,null,null,null,null,null,null,null,null,null,null,null,null,null,null,null,null,null,null,null,null,null,null,null,null,null,null,null,null,null,null,null,null,null,null,null,null,null,null,null,null,275,"沢良宜東千里丘停車場線",148,3,"一般府道",319,1,"現道"]
[null,null,null,null,null,null,null,null,null,null,null,null,null,null,null,null,null,null,null,null,null,null,null,null,null,null,null,null,null,null,null,null,null,null,null,null,null,null,null,null,null,null,276,"高槻茨木線",149,3,"一般府道",321,1,"現道"]
[null,null,null,null,null,null,null,null,null,null,null,null,null,null,null,null,null,null,null,null,null,null,null,null,null,null,null,null,null,null,null,null,null,null,null,null,null,null,null,null,null,null,277,"鳥飼八丁富田線",150,3,"一般府道",322,1,"現道"]
[null,null,null,null,null,null,null,null,null,null,null,null,null,null,null,null,null,null,null,null,null,null,null,null,null,null,null,null,null,null,null,null,null,null,null,null,null,null,null,null,null,null,278,"三島江茨木線",151,3,"一般府道",323,1,"現道"]
[null,null,null,null,null,null,null,null,null,null,null,null,null,null,null,null,null,null,null,null,null,null,null,null,null,null,null,null,null,null,null,null,null,null,null,null,null,null,null,null,null,null,279,"安満前島線",152,3,"一般府道",325,1,"現道"]
[null,null,null,null,null,null,null,null,null,null,null,null,null,null,null,null,null,null,null,null,null,null,null,null,null,null,null,null,null,null,null,null,null,null,null,null,null,null,null,null,null,null,280,"金田門真停車場線",153,3,"一般府道",326,1,"現道"]
[null,null,null,null,null,null,null,null,null,null,null,null,null,null,null,null,null,null,null,null,null,null,null,null,null,null,null,null,null,null,null,null,null,null,null,null,null,null,null,null,null,null,281,"木屋門真線",154,3,"一般府道",327,1,"現道"]
[null,null,null,null,null,null,null,null,null,null,null,null,null,null,null,null,null,null,null,null,null,null,null,null,null,null,null,null,null,null,null,null,null,null,null,null,null,null,null,null,null,null,282,"杉田口禁野線",155,3,"一般府道",329,1,"現道"]
[null,null,null,null,null,null,null,null,null,null,null,null,null,null,null,null,null,null,null,null,null,null,null,null,null,null,null,null,null,null,null,null,null,null,null,null,null,null,null,null,null,null,283,"長尾八幡線",156,3,"一般府道",330,1,"現道"]
[null,null,null,null,null,null,null,null,null,null,null,null,null,null,null,null,null,null,null,null,null,null,null,null,null,null,null,null,null,null,null,null,null,null,null,null,null,null,null,null,null,null,284,"（旧）長尾八幡線",156,3,"一般府道",330,2,"旧道"]
[null,null,null,null,null,null,null,null,null,null,null,null,null,null,null,null,null,null,null,null,null,null,null,null,null,null,null,null,null,null,null,null,null,null,null,null,null,null,null,null,null,null,285,"（新）長尾八幡線",156,3,"一般府道",330,3,"新道"]
[null,null,null,null,null,null,null,null,null,null,null,null,null,null,null,null,null,null,null,null,null,null,null,null,null,null,null,null,null,null,null,null,null,null,null,null,null,null,null,null,null,null,286,"私市太秦線",157,3,"一般府道",331,1,"現道"]
[null,null,null,null,null,null,null,null,null,null,null,null,null,null,null,null,null,null,null,null,null,null,null,null,null,null,null,null,null,null,null,null,null,null,null,null,null,null,null,null,null,null,287,"中垣内南田原線",158,3,"一般府道",332,1,"現道"]
[null,null,null,null,null,null,null,null,null,null,null,null,null,null,null,null,null,null,null,null,null,null,null,null,null,null,null,null,null,null,null,null,null,null,null,null,null,null,null,null,null,null,290,"山本黒谷線",159,3,"一般府道",336,1,"現道"]
[null,null,null,null,null,null,null,null,null,null,null,null,null,null,null,null,null,null,null,null,null,null,null,null,null,null,null,null,null,null,null,null,null,null,null,null,null,null,null,null,null,null,291,"柏村南本町線",160,3,"一般府道",337,1,"現道"]
[null,null,null,null,null,null,null,null,null,null,null,null,null,null,null,null,null,null,null,null,null,null,null,null,null,null,null,null,null,null,null,null,null,null,null,null,null,null,null,null,null,null,292,"本堂高井田線",161,3,"一般府道",338,1,"現道"]
[null,null,null,null,null,null,null,null,null,null,null,null,null,null,null,null,null,null,null,null,null,null,null,null,null,null,null,null,null,null,null,null,null,null,null,null,null,null,null,null,null,null,293,"大堀堺線",162,3,"一般府道",339,1,"現道"]
[null,null,null,null,null,null,null,null,null,null,null,null,null,null,null,null,null,null,null,null,null,null,null,null,null,null,null,null,null,null,null,null,null,null,null,null,null,null,null,null,null,null,294,"（旧）大堀堺線",162,3,"一般府道",339,2,"旧道"]
[null,null,null,null,null,null,null,null,null,null,null,null,null,null,null,null,null,null,null,null,null,null,null,null,null,null,null,null,null,null,null,null,null,null,null,null,null,null,null,null,null,null,295,"（新）大堀堺線",162,3,"一般府道",339,3,"新道"]
[null,null,null,null,null,null,null,null,null,null,null,null,null,null,null,null,null,null,null,null,null,null,null,null,null,null,null,null,null,null,null,null,null,null,null,null,null,null,null,null,null,null,296,"郡戸大堀線",163,3,"一般府道",340,1,"現道"]
[null,null,null,null,null,null,null,null,null,null,null,null,null,null,null,null,null,null,null,null,null,null,null,null,null,null,null,null,null,null,null,null,null,null,null,null,null,null,null,null,null,null,297,"我堂金岡線",164,3,"一般府道",341,1,"現道"]
[null,null,null,null,null,null,null,null,null,null,null,null,null,null,null,null,null,null,null,null,null,null,null,null,null,null,null,null,null,null,null,null,null,null,null,null,null,null,null,null,null,null,298,"（新）我堂金岡線",164,3,"一般府道",341,3,"新道"]
[null,null,null,null,null,null,null,null,null,null,null,null,null,null,null,null,null,null,null,null,null,null,null,null,null,null,null,null,null,null,null,null,null,null,null,null,null,null,null,null,null,null,299,"西藤井寺線",165,3,"一般府道",342,1,"現道"]
[null,null,null,null,null,null,null,null,null,null,null,null,null,null,null,null,null,null,null,null,null,null,null,null,null,null,null,null,null,null,null,null,null,null,null,null,null,null,null,null,null,null,300,"島泉伊賀線",166,3,"一般府道",343,1,"現道"]
[null,null,null,null,null,null,null,null,null,null,null,null,null,null,null,null,null,null,null,null,null,null,null,null,null,null,null,null,null,null,null,null,null,null,null,null,null,null,null,null,null,null,301,"上河内富田林線",167,3,"一般府道",344,1,"現道"]
[null,null,null,null,null,null,null,null,null,null,null,null,null,null,null,null,null,null,null,null,null,null,null,null,null,null,null,null,null,null,null,null,null,null,null,null,null,null,null,null,null,null,302,"竹内河南線",168,3,"一般府道",345,1,"現道"]
[null,null,null,null,null,null,null,null,null,null,null,null,null,null,null,null,null,null,null,null,null,null,null,null,null,null,null,null,null,null,null,null,null,null,null,null,null,null,null,null,null,null,303,"東阪三日市線",169,3,"一般府道",346,1,"現道"]
[null,null,null,null,null,null,null,null,null,null,null,null,null,null,null,null,null,null,null,null,null,null,null,null,null,null,null,null,null,null,null,null,null,null,null,null,null,null,null,null,null,null,304,"甘南備川向線",170,3,"一般府道",347,1,"現道"]
[null,null,null,null,null,null,null,null,null,null,null,null,null,null,null,null,null,null,null,null,null,null,null,null,null,null,null,null,null,null,null,null,null,null,null,null,null,null,null,null,null,null,305,"中津原寺元線",171,3,"一般府道",348,1,"現道"]
[null,null,null,null,null,null,null,null,null,null,null,null,null,null,null,null,null,null,null,null,null,null,null,null,null,null,null,null,null,null,null,null,null,null,null,null,null,null,null,null,null,null,306,"加賀田片添線",172,3,"一般府道",349,1,"現道"]
[null,null,null,null,null,null,null,null,null,null,null,null,null,null,null,null,null,null,null,null,null,null,null,null,null,null,null,null,null,null,null,null,null,null,null,null,null,null,null,null,null,null,307,"大野天野線",173,3,"一般府道",350,1,"現道"]
[null,null,null,null,null,null,null,null,null,null,null,null,null,null,null,null,null,null,null,null,null,null,null,null,null,null,null,null,null,null,null,null,null,null,null,null,null,null,null,null,null,null,308,"深井畑山宿院線",174,3,"一般府道",351,1,"現道"]
[null,null,null,null,null,null,null,null,null,null,null,null,null,null,null,null,null,null,null,null,null,null,null,null,null,null,null,null,null,null,null,null,null,null,null,null,null,null,null,null,null,null,309,"西鳳東線",175,3,"一般府道",352,1,"現道"]
[null,null,null,null,null,null,null,null,null,null,null,null,null,null,null,null,null,null,null,null,null,null,null,null,null,null,null,null,null,null,null,null,null,null,null,null,null,null,null,null,null,null,310,"信太高石線",176,3,"一般府道",353,1,"現道"]
[null,null,null,null,null,null,null,null,null,null,null,null,null,null,null,null,null,null,null,null,null,null,null,null,null,null,null,null,null,null,null,null,null,null,null,null,null,null,null,null,null,null,311,"（旧）信太高石線",176,3,"一般府道",353,2,"旧道"]
[null,null,null,null,null,null,null,null,null,null,null,null,null,null,null,null,null,null,null,null,null,null,null,null,null,null,null,null,null,null,null,null,null,null,null,null,null,null,null,null,null,null,314,"（新）信太高石線",176,3,"一般府道",353,3,"新道"]
[null,null,null,null,null,null,null,null,null,null,null,null,null,null,null,null,null,null,null,null,null,null,null,null,null,null,null,null,null,null,null,null,null,null,null,null,null,null,null,null,null,null,315,"和田福泉線",177,3,"一般府道",354,1,"現道"]
[null,null,null,null,null,null,null,null,null,null,null,null,null,null,null,null,null,null,null,null,null,null,null,null,null,null,null,null,null,null,null,null,null,null,null,null,null,null,null,null,null,null,316,"（新）和田福泉線",177,3,"一般府道",354,3,"新道"]
[null,null,null,null,null,null,null,null,null,null,null,null,null,null,null,null,null,null,null,null,null,null,null,null,null,null,null,null,null,null,null,null,null,null,null,null,null,null,null,null,null,null,317,"別所草部線",178,3,"一般府道",355,1,"現道"]
[null,null,null,null,null,null,null,null,null,null,null,null,null,null,null,null,null,null,null,null,null,null,null,null,null,null,null,null,null,null,null,null,null,null,null,null,null,null,null,null,null,null,318,"槙尾山仏並線",179,3,"一般府道",357,1,"現道"]
[null,null,null,null,null,null,null,null,null,null,null,null,null,null,null,null,null,null,null,null,null,null,null,null,null,null,null,null,null,null,null,null,null,null,null,null,null,null,null,null,null,null,320,"（新）槙尾山仏並線",179,3,"一般府道",357,3,"新道"]
[null,null,null,null,null,null,null,null,null,null,null,null,null,null,null,null,null,null,null,null,null,null,null,null,null,null,null,null,null,null,null,null,null,null,null,null,null,null,null,null,null,null,321,"父鬼和気線",180,3,"一般府道",358,1,"現道"]
[null,null,null,null,null,null,null,null,null,null,null,null,null,null,null,null,null,null,null,null,null,null,null,null,null,null,null,null,null,null,null,null,null,null,null,null,null,null,null,null,null,null,322,"三林岡山線",181,3,"一般府道",359,1,"現道"]
[null,null,null,null,null,null,null,null,null,null,null,null,null,null,null,null,null,null,null,null,null,null,null,null,null,null,null,null,null,null,null,null,null,null,null,null,null,null,null,null,null,null,323,"（旧）三林岡山線",181,3,"一般府道",359,2,"旧道"]
[null,null,null,null,null,null,null,null,null,null,null,null,null,null,null,null,null,null,null,null,null,null,null,null,null,null,null,null,null,null,null,null,null,null,null,null,null,null,null,null,null,null,324,"（新）三林岡山線",181,3,"一般府道",359,3,"新道"]
[null,null,null,null,null,null,null,null,null,null,null,null,null,null,null,null,null,null,null,null,null,null,null,null,null,null,null,null,null,null,null,null,null,null,null,null,null,null,null,null,null,null,325,"田治米忠岡線",182,3,"一般府道",360,1,"現道"]
[null,null,null,null,null,null,null,null,null,null,null,null,null,null,null,null,null,null,null,null,null,null,null,null,null,null,null,null,null,null,null,null,null,null,null,null,null,null,null,null,null,null,326,"春木大町線",183,3,"一般府道",361,1,"現道"]
[null,null,null,null,null,null,null,null,null,null,null,null,null,null,null,null,null,null,null,null,null,null,null,null,null,null,null,null,null,null,null,null,null,null,null,null,null,null,null,null,null,null,327,"（旧）春木大町線",183,3,"一般府道",361,2,"旧道"]
[null,null,null,null,null,null,null,null,null,null,null,null,null,null,null,null,null,null,null,null,null,null,null,null,null,null,null,null,null,null,null,null,null,null,null,null,null,null,null,null,null,null,328,"和気岸和田線",184,3,"一般府道",362,1,"現道"]
[null,null,null,null,null,null,null,null,null,null,null,null,null,null,null,null,null,null,null,null,null,null,null,null,null,null,null,null,null,null,null,null,null,null,null,null,null,null,null,null,null,null,331,"春木岸和田線",185,3,"一般府道",363,1,"現道"]
[null,null,null,null,null,null,null,null,null,null,null,null,null,null,null,null,null,null,null,null,null,null,null,null,null,null,null,null,null,null,null,null,null,null,null,null,null,null,null,null,null,null,332,"（旧）春木岸和田線",185,3,"一般府道",363,2,"旧道"]
[null,null,null,null,null,null,null,null,null,null,null,null,null,null,null,null,null,null,null,null,null,null,null,null,null,null,null,null,null,null,null,null,null,null,null,null,null,null,null,null,null,null,334,"（新）春木岸和田線",185,3,"一般府道",363,3,"新道"]
[null,null,null,null,null,null,null,null,null,null,null,null,null,null,null,null,null,null,null,null,null,null,null,null,null,null,null,null,null,null,null,null,null,null,null,null,null,null,null,null,null,null,335,"土丸栄線",186,3,"一般府道",366,1,"現道"]
[null,null,null,null,null,null,null,null,null,null,null,null,null,null,null,null,null,null,null,null,null,null,null,null,null,null,null,null,null,null,null,null,null,null,null,null,null,null,null,null,null,null,336,"日根野羽倉崎線",187,3,"一般府道",367,1,"現道"]
[null,null,null,null,null,null,null,null,null,null,null,null,null,null,null,null,null,null,null,null,null,null,null,null,null,null,null,null,null,null,null,null,null,null,null,null,null,null,null,null,null,null,337,"新家田尻線",188,3,"一般府道",368,3,"新道"]
[null,null,null,null,null,null,null,null,null,null,null,null,null,null,null,null,null,null,null,null,null,null,null,null,null,null,null,null,null,null,null,null,null,null,null,null,null,null,null,null,null,null,338,"大苗代岡田浦停車場線",189,3,"一般府道",369,1,"現道"]
[null,null,null,null,null,null,null,null,null,null,null,null,null,null,null,null,null,null,null,null,null,null,null,null,null,null,null,null,null,null,null,null,null,null,null,null,null,null,null,null,null,null,339,"東鳥取南海線",190,3,"一般府道",370,1,"現道"]
[null,null,null,null,null,null,null,null,null,null,null,null,null,null,null,null,null,null,null,null,null,null,null,null,null,null,null,null,null,null,null,null,null,null,null,null,null,null,null,null,null,null,340,"自然田鳥取荘停車場線",191,3,"一般府道",371,1,"現道"]
[null,null,null,null,null,null,null,null,null,null,null,null,null,null,null,null,null,null,null,null,null,null,null,null,null,null,null,null,null,null,null,null,null,null,null,null,null,null,null,null,null,null,341,"水間和泉橋本停車場線",192,3,"一般府道",372,1,"現道"]
[null,null,null,null,null,null,null,null,null,null,null,null,null,null,null,null,null,null,null,null,null,null,null,null,null,null,null,null,null,null,null,null,null,null,null,null,null,null,null,null,null,null,342,"山田上小野原線",193,3,"一般府道",374,1,"現道"]
[null,null,null,null,null,null,null,null,null,null,null,null,null,null,null,null,null,null,null,null,null,null,null,null,null,null,null,null,null,null,null,null,null,null,null,null,null,null,null,null,null,null,343,"豊中吹田線",194,3,"一般府道",375,1,"現道"]
[null,null,null,null,null,null,null,null,null,null,null,null,null,null,null,null,null,null,null,null,null,null,null,null,null,null,null,null,null,null,null,null,null,null,null,null,null,null,null,null,null,null,345,"北大日竜田線",195,3,"一般府道",376,1,"現道"]
[null,null,null,null,null,null,null,null,null,null,null,null,null,null,null,null,null,null,null,null,null,null,null,null,null,null,null,null,null,null,null,null,null,null,null,null,null,null,null,null,null,null,346,"平野守口線",196,3,"一般府道",377,1,"現道"]
[null,null,null,null,null,null,null,null,null,null,null,null,null,null,null,null,null,null,null,null,null,null,null,null,null,null,null,null,null,null,null,null,null,null,null,null,null,null,null,null,null,null,347,"大阪枚岡奈良線",197,3,"一般府道",379,1,"現道"]
[null,null,null,null,null,null,null,null,null,null,null,null,null,null,null,null,null,null,null,null,null,null,null,null,null,null,null,null,null,null,null,null,null,null,null,null,null,null,null,null,null,null,348,"余野茨木線",198,3,"一般府道",380,1,"現道"]
[null,null,null,null,null,null,null,null,null,null,null,null,null,null,null,null,null,null,null,null,null,null,null,null,null,null,null,null,null,null,null,null,null,null,null,null,null,null,null,null,null,null,349,"南千里茨木停車場線",199,3,"一般府道",386,1,"現道"]
[null,null,null,null,null,null,null,null,null,null,null,null,null,null,null,null,null,null,null,null,null,null,null,null,null,null,null,null,null,null,null,null,null,null,null,null,null,null,null,null,null,null,351,"森屋狭山線",200,3,"一般府道",390,1,"現道"]
[null,null,null,null,null,null,null,null,null,null,null,null,null,null,null,null,null,null,null,null,null,null,null,null,null,null,null,null,null,null,null,null,null,null,null,null,null,null,null,null,null,null,352,"富田林五条線",201,3,"一般府道",391,1,"現道"]
[null,null,null,null,null,null,null,null,null,null,null,null,null,null,null,null,null,null,null,null,null,null,null,null,null,null,null,null,null,null,null,null,null,null,null,null,null,null,null,null,null,null,353,"堺泉北環状線",202,3,"一般府道",397,1,"現道"]
[null,null,null,null,null,null,null,null,null,null,null,null,null,null,null,null,null,null,null,null,null,null,null,null,null,null,null,null,null,null,null,null,null,null,null,null,null,null,null,null,null,null,354,"堺阪南線",203,3,"一般府道",398,1,"現道"]
[null,null,null,null,null,null,null,null,null,null,null,null,null,null,null,null,null,null,null,null,null,null,null,null,null,null,null,null,null,null,null,null,null,null,null,null,null,null,null,null,null,null,355,"木ノ本岬線",204,3,"一般府道",400,1,"現道"]
[null,null,null,null,null,null,null,null,null,null,null,null,null,null,null,null,null,null,null,null,null,null,null,null,null,null,null,null,null,null,null,null,null,null,null,null,null,null,null,null,null,null,356,"泉佐野熊取線",205,3,"一般府道",404,1,"現道"]
[null,null,null,null,null,null,null,null,null,null,null,null,null,null,null,null,null,null,null,null,null,null,null,null,null,null,null,null,null,null,null,null,null,null,null,null,null,null,null,null,null,null,357,"和歌山阪南線",206,3,"一般府道",752,1,"現道"]
[null,null,null,null,null,null,null,null,null,null,null,null,null,null,null,null,null,null,null,null,null,null,null,null,null,null,null,null,null,null,null,null,null,null,null,null,null,null,null,null,null,null,358,"大阪吹田自転車道線",207,3,"一般府道",801,1,"現道"]
[null,null,null,null,null,null,null,null,null,null,null,null,null,null,null,null,null,null,null,null,null,null,null,null,null,null,null,null,null,null,null,null,null,null,null,null,null,null,null,null,null,null,359,"八尾河内長野自転車道線",208,3,"一般府道",802,1,"現道"]
[null,null,null,null,null,null,null,null,null,null,null,null,null,null,null,null,null,null,null,null,null,null,null,null,null,null,null,null,null,null,null,null,null,null,null,null,null,null,null,null,null,null,360,"北河内自転車道線",209,3,"一般府道",803,1,"現道"]
[null,null,null,null,null,null,null,null,null,null,null,null,null,null,null,null,null,null,null,null,null,null,null,null,null,null,null,null,null,null,null,null,null,null,null,null,null,null,null,null,null,null,361,"杉生能勢線",210,3,"一般府道",998,1,"現道"]

{"sheet":"HiddenSheet_様式-3","index":5,"n_rows":42,"n_cols":90,"rows_kept":42,"cut":false,"hidden":true,"merged":[[39,68,39,73],[39,74,39,76],[39,77,39,90],[40,57,40,59],[40,60,40,67],[40,68,40,73],[37,74,37,76],[37,77,37,90],[36,1,42,4],[36,50,38,56],[36,57,36,59],[36,60,36,67],[36,68,36,73],[36,74,36,76],[38,57,38,59],[38,60,38,67],[38,68,38,73],[38,74,38,76],[42,50,42,90],[40,74,40,76],[40,77,40,90],[41,57,41,59],[41,60,41,67],[41,68,41,73],[41,74,41,76],[41,77,41,90],[38,77,38,90],[39,50,41,56],[39,57,39,59],[39,60,39,67],[34,1,34,4],[34,5,42,49],[34,50,34,52],[34,53,34,56],[34,57,34,58],[34,87,34,90],[35,1,35,4],[35,50,35,52],[35,53,35,56],[35,57,35,58],[35,60,35,61],[35,64,35,67],[35,68,35,78],[35,87,35,90],[34,60,34,61],[34,62,34,63],[34,64,34,67],[34,68,34,78],[34,79,34,81],[34,83,34,85],[36,77,36,90],[37,57,37,59],[37,60,37,67],[37,68,37,73],[32,22,32,49],[32,50,32,56],[32,57,32,62],[32,89,32,90],[33,57,33,62],[33,63,33,70],[33,72,33,79],[33,81,33,88],[33,89,33,90],[33,1,33,4],[33,5,33,10],[33,11,33,16],[33,17,33,22],[33,23,33,49],[33,50,33,56],[32,1,32,4],[32,5,32,7],[32,9,32,10],[32,12,32,13],[32,15,32,17],[32,19,32,20],[8,2,29,48],[8,51,29,89],[31,1,31,4],[31,5,31,49],[31,50,31,56],[31,57,31,58],[31,60,31,66],[31,68,31,83],[31,85,31,90],[6,80,6,85],[6,86,6,90],[7,1,7,49],[7,51,7,89],[6,52,6,54],[6,55,6,57],[6,58,6,61],[6,62,6,65],[6,66,6,69],[6,70,6,73],[6,34,6,35],[6,36,6,39],[6,40,6,41],[6,42,6,44],[6,45,6,47],[6,48,6,51],[6,1,6,8],[6,9,6,12],[6,13,6,17],[6,18,6,21],[6,22,6,24],[6,25,6,26],[4,1,4,5],[4,14,4,18],[4,19,4,24],[4,25,4,27],[4,28,4,51],[4,52,4,55],[4,65,4,66],[4,76,4,79],[6,27,6,30],[6,31,6,33],[5,65,5,66],[5,25,5,27],[5,28,5,44],[5,45,5,48],[5,49,5,59],[5,60,5,61],[5,62,5,63],[6,74,6,76],[6,77,6,79],[5,1,5,3],[5,4,5,6],[5,7,5,9],[5,10,5,16],[5,17,5,21],[5,22,5,24],[5,82,5,84],[5,85,5,90],[5,68,5,69],[5,71,5,72],[5,73,5,74],[5,76,5,77],[5,79,5,80],[4,80,4,82],[4,83,4,84],[4,85,4,88],[4,89,4,90],[1,27,2,63],[1,67,2,75],[1,76,1,90],[2,76,2,90],[3,67,3,75],[3,76,3,77],[3,78,3,79],[3,80,3,81],[3,82,3,83],[3,84,3,85],[3,86,3,87],[3,88,3,90]]}
[]
[null,null,null,null,null,null,null,null,null,null,null,null,null,null,null,null,null,null,null,null,null,null,null,null,null,null,null,"様式－３　　箇所別記録表（地すべり）",null,null,null,null,null,null,null,null,null,null,null,null,null,null,null,null,null,null,null,null,null,null,null,null,null,null,null,null,null,null,null,null,null,null,null,null,null,null,null,"管理機関名",null,null,null,null,null,null,null,null,"大阪府"]
[]
[null,null,null,null,null,null,null,null,null,null,null,null,null,null,null,null,null,null,null,null,null,null,null,null,null,null,null,null,null,null,null,null,null,null,null,null,null,null,null,null,null,null,null,null,null,null,null,null,null,null,null,null,null,null,null,null,null,null,null,null,null,null,null,null,null,null,null,"管理機関コード",null,null,null,null,null,null,null,null,2,null,7]
[null,"施設管理番号",null,null,null,null,null,null,null,null,{"$f":"IF(ISERROR(MATCH(T5,MASTER_LIST_点検対象項目,0))=TRUE,\"\",INDEX(MASTER!AG3:AG60000,MATCH(T5,MASTER_LIST_点検対象項目,0)))","v":"C"},null,null,null,"点検対象項目",null,null,null,null,"地すべり",null,null,null,null,null,"路線名",null,null,null,null,null,null,null,null,null,null,null,null,null,null,null,null,null,null,null,null,null,null,null,null,null,null,"距離標（自）",null,null,null,null,null,null,null,null,null,null,null,null,"(至)",null,null,null,null,null,null,null,null,null,null,"上下線の別",null,null,null,null,null,null,"延長",null,null,null,null,null,"m"]
[null,"事業区分",null,null,null,null,null,"道路種別",null,null,null,null,null,null,null,null,null,"現道・旧道路区分",null,null,null,null,null,null,null,"所在地",null,null,null,null,null,null,null,null,null,null,null,null,null,null,null,null,null,null,null,"位置目印",null,null,null,null,null,null,null,null,null,null,null,null,null,null,"北緯",null,null,null,"度",null,null,"分",null,null,"秒","東経",null,null,null,"度",null,null,"分",null,null,"秒","測地系"]
[null,"事前通行規制区間指定",null,null,null,null,null,null,null,null,null,null,null,"規制基準等",null,null,null,null,"連続雨量",null,null,null,null,null,null,"mm",null,"時間雨量",null,null,null,null,null,null,"mm",null,"交通量",null,null,null,"平日",null,null,null,null,"台/12h",null,null,"休日",null,null,null,null,null,null,"台/12h",null,null,"ＤＩＤ区間",null,null,null,null,null,null,null,"バス路線",null,null,null,null,null,null,null,"迂回路",null,null,null,null,null,"緊急輸送道路区分"]
[null,"スケッチ・現況写真（既設対策工、位置目印との位置関係が分かるもの）",null,null,null,null,null,null,null,null,null,null,null,null,null,null,null,null,null,null,null,null,null,null,null,null,null,null,null,null,null,null,null,null,null,null,null,null,null,null,null,null,null,null,null,null,null,null,null,null,null,"位　置　図"]
[]
[]
[]
[]
[]
[]
[]
[]
[]
[]
[]
[]
[]
[]
[]
[]
[]
[]
[]
[]
[]
[]
[]
[null,"特記事項",null,null,null,null,null,null,null,null,null,null,null,null,null,null,null,null,null,null,null,null,null,null,null,null,null,null,null,null,null,null,null,null,null,null,null,null,null,null,null,null,null,null,null,null,null,null,null,null,"被災履歴",null,null,null,null,null,null,null,null,"（",null,null,null,null,null,null,null,null,null,null,null,null,null,null,null,null,null,null,null,null,null,null,null,null,"）","（H8年度以降）"]
[null,"点検実施",null,null,null,"H",null,null,"年",null,null,"月",null,null,"日","天候：",null,null,"（",null,null,"）",null,null,null,null,null,null,null,null,null,null,null,null,null,null,null,null,null,null,null,null,null,null,null,null,null,null,null,null,"重複点検対象項目",null,null,null,null,null,null,"対応施設管理番号：",null,null,null,null,null,null,null,null,null,{"$f":"IF(ISERROR(MATCH(BL34,MASTER_LIST_点検対象項目,0))=TRUE,\"\",INDEX(MASTER!AG3:AG60000,MATCH(BL34,MASTER_LIST_点検対象項目,0)))","v":""},null,null,null,null,null,null,null,null,{"$f":"IF(ISERROR(MATCH(BU34,MASTER_LIST_点検対象項目,0))=TRUE,\"\",INDEX(MASTER!AG3:AG60000,MATCH(BU34,MASTER_LIST_点検対象項目,0)))","v":""},null,null,null,null,null,null,null,null,{"$f":"IF(ISERROR(MATCH(CD34,MASTER_LIST_点検対象項目,0))=TRUE,\"\",INDEX(MASTER!AG3:AG60000,MATCH(CD34,MASTER_LIST_点検対象項目,0)))","v":""}]
[null,"調査方法"]
[null,"所見",null,null,null,null,null,null,null,null,null,null,null,null,null,null,null,null,null,null,null,null,null,null,null,null,null,null,null,null,null,null,null,null,null,null,null,null,null,null,null,null,null,null,null,null,null,null,null,null,"H",null,null,"年度点検結果",null,null,null,"評点",null,"（",null,null,"点）",null,"総合評価：",null,null,null,null,null,null,null,null,null,null,null,null,null,null,"／対応：",null,null,"（",null,null,null,"）"]
[null,"（評価理由）",null,null,null,null,null,null,null,null,null,null,null,null,null,null,null,null,null,null,null,null,null,null,null,null,null,null,null,null,null,null,null,null,null,null,null,null,null,null,null,null,null,null,null,null,null,null,null,null,"H",null,null,"年度点検結果",null,null,null,"評点",null,"（",null,null,"点）",null,"総合評価：",null,null,null,"特に新たな対応を必要としない"]
[null,null,null,null,null,null,null,null,null,null,null,null,null,null,null,null,null,null,null,null,null,null,null,null,null,null,null,null,null,null,null,null,null,null,null,null,null,null,null,null,null,null,null,null,null,null,null,null,null,null,"予想災害規模",null,null,null,null,null,null,"現象1：",null,null,null,null,null,null,null,null,null,null,null,null,null,null,null,null,"規模1："]
[null,null,null,null,null,null,null,null,null,null,null,null,null,null,null,null,null,null,null,null,null,null,null,null,null,null,null,null,null,null,null,null,null,null,null,null,null,null,null,null,null,null,null,null,null,null,null,null,null,null,null,null,null,null,null,null,null,"現象2：",null,null,null,null,null,null,null,null,null,null,null,null,null,null,null,null,"規模2："]
[null,null,null,null,null,null,null,null,null,null,null,null,null,null,null,null,null,null,null,null,null,null,null,null,null,null,null,null,null,null,null,null,null,null,null,null,null,null,null,null,null,null,null,null,null,null,null,null,null,null,null,null,null,null,null,null,null,"現象3：",null,null,null,null,null,null,null,null,null,null,null,null,null,null,null,null,"規模3："]
[null,null,null,null,null,null,null,null,null,null,null,null,null,null,null,null,null,null,null,null,null,null,null,null,null,null,null,null,null,null,null,null,null,null,null,null,null,null,null,null,null,null,null,null,null,null,null,null,null,null,"想定対策工",null,null,null,null,null,null,"工種1：",null,null,null,null,null,null,null,null,null,null,null,null,null,null,null,null,"その他1："]
[null,null,null,null,null,null,null,null,null,null,null,null,null,null,null,null,null,null,null,null,null,null,null,null,null,null,null,null,null,null,null,null,null,null,null,null,null,null,null,null,null,null,null,null,null,null,null,null,null,null,null,null,null,null,null,null,null,"工種2：",null,null,null,null,null,null,null,null,null,null,null,null,null,null,null,null,"その他2："]
[null,null,null,null,null,null,null,null,null,null,null,null,null,null,null,null,null,null,null,null,null,null,null,null,null,null,null,null,null,null,null,null,null,null,null,null,null,null,null,null,null,null,null,null,null,null,null,null,null,null,null,null,null,null,null,null,null,"工種3：",null,null,null,null,null,null,null,null,null,null,null,null,null,null,null,null,"その他3："]